Department family,Entity,Date,Expense Type,Expense area,Supplier,Transaction number,AP Amount (�)
Department of Health,NHS Sheffield CCG,31/12/2017,C&M-PMS Contract Value,PRC DELEGATED CO-COMMISSIONING,ABBEY LANE SURGERY,20019838,"22,188.36"
Department of Health,NHS Sheffield CCG,31/12/2017,C&M-PMS DES Learn Dsblty Hlth Chk,PRC DELEGATED CO-COMMISSIONING,ABBEY LANE SURGERY,20019838,140
Department of Health,NHS Sheffield CCG,31/12/2017,C&M-PMS Funding Differential Review,PRC DELEGATED CO-COMMISSIONING,ABBEY LANE SURGERY,20019838,"1,105.08"
Department of Health,NHS Sheffield CCG,31/12/2017,C&M-PMS Out of Hours Opt Outs,PRC DELEGATED CO-COMMISSIONING,ABBEY LANE SURGERY,20019838,9.38
Department of Health,NHS Sheffield CCG,31/12/2017,C&M-PMS PCO Other,PRC DELEGATED CO-COMMISSIONING,ABBEY LANE SURGERY,20019838,384.5
Department of Health,NHS Sheffield CCG,31/12/2017,C&M-PMS Prem Notional Rent,PRC DELEGATED CO-COMMISSIONING,ABBEY LANE SURGERY,20019838,"2,122.92"
Department of Health,NHS Sheffield CCG,31/12/2017,C&M-PMS Prem Rates,PRC DELEGATED CO-COMMISSIONING,ABBEY LANE SURGERY,20019838,700
Department of Health,NHS Sheffield CCG,31/12/2017,C&M-PMS QOF Aspiration,PRC DELEGATED CO-COMMISSIONING,ABBEY LANE SURGERY,20019838,"3,210.12"
Department of Health,NHS Sheffield CCG,31/12/2017,Cont Care-Physical Disab (65+),CHC ADULT FULLY FUNDED,ABBEYCARE NURSING,19934220,"49,782.90"
Department of Health,NHS Sheffield CCG,31/12/2017,Contract & Agency-Agency Int Mgr,BEREAVEMENT SERVICE,ATTAIN HEALTH MANAGEMENT SERVICES LTD,19934111,"26,688.00"
Department of Health,NHS Sheffield CCG,31/12/2017,Hotel And Accomodation Costs,BEREAVEMENT SERVICE,ATTAIN HEALTH MANAGEMENT SERVICES LTD,19934111,159.12
Department of Health,NHS Sheffield CCG,31/12/2017,Oth Travel Costs-Car Mileage,BEREAVEMENT SERVICE,ATTAIN HEALTH MANAGEMENT SERVICES LTD,19934111,822.72
Department of Health,NHS Sheffield CCG,31/12/2017,Oth Travel Costs-Training Trav&Subs,BEREAVEMENT SERVICE,ATTAIN HEALTH MANAGEMENT SERVICES LTD,19934111,29.98
Department of Health,NHS Sheffield CCG,31/12/2017,Taxi Travel,BEREAVEMENT SERVICE,ATTAIN HEALTH MANAGEMENT SERVICES LTD,19934111,19.21
Department of Health,NHS Sheffield CCG,31/12/2017,C&M-PMS Contract Value,PRC DELEGATED CO-COMMISSIONING,AVENUE MEDICAL CENTRE SHEFFIELD,20019835,-819.53
Department of Health,NHS Sheffield CCG,31/12/2017,C&M-PMS GP Statutory Levy,PRC DELEGATED CO-COMMISSIONING,AVENUE MEDICAL CENTRE SHEFFIELD,20019835,-217.98
Department of Health,NHS Sheffield CCG,31/12/2017,C&M-PMS Out of Hours Opt Outs,PRC DELEGATED CO-COMMISSIONING,AVENUE MEDICAL CENTRE SHEFFIELD,20019835,"-2,546.12"
Department of Health,NHS Sheffield CCG,31/12/2017,C&M-PMS Voluntary Levy,PRC DELEGATED CO-COMMISSIONING,AVENUE MEDICAL CENTRE SHEFFIELD,20019835,-36.33
Department of Health,NHS Sheffield CCG,31/12/2017,C&M-PMS Contract Value,PRC DELEGATED CO-COMMISSIONING,AVENUE MEDICAL CENTRE SHEFFIELD,20019836,"53,143.93"
Department of Health,NHS Sheffield CCG,31/12/2017,C&M-PMS DES Learn Dsblty Hlth Chk,PRC DELEGATED CO-COMMISSIONING,AVENUE MEDICAL CENTRE SHEFFIELD,20019836,980
Department of Health,NHS Sheffield CCG,31/12/2017,C&M-PMS Out of Hours Opt Outs,PRC DELEGATED CO-COMMISSIONING,AVENUE MEDICAL CENTRE SHEFFIELD,20019836,41.18
Department of Health,NHS Sheffield CCG,31/12/2017,C&M-PMS PCO Other,PRC DELEGATED CO-COMMISSIONING,AVENUE MEDICAL CENTRE SHEFFIELD,20019836,452.6
Department of Health,NHS Sheffield CCG,31/12/2017,C&M-PMS Prem Notional Rent,PRC DELEGATED CO-COMMISSIONING,AVENUE MEDICAL CENTRE SHEFFIELD,20019836,"5,546.67"
Department of Health,NHS Sheffield CCG,31/12/2017,C&M-PMS Prem Rates,PRC DELEGATED CO-COMMISSIONING,AVENUE MEDICAL CENTRE SHEFFIELD,20019836,875
Department of Health,NHS Sheffield CCG,31/12/2017,C&M-PMS QOF Aspiration,PRC DELEGATED CO-COMMISSIONING,AVENUE MEDICAL CENTRE SHEFFIELD,20019836,"6,441.78"
Department of Health,NHS Sheffield CCG,31/12/2017,Seconded-Basic Sal-Staff fm oth org,BEREAVEMENT SERVICE,BARNSLEY HOSPITAL NHS FOUNDATION TRUST,19934178,"28,300.00"
Department of Health,NHS Sheffield CCG,31/12/2017,Hcare Srv Rec Fdtn Trust-Contract Baseline,ACUTE COMMISSIONING,BARNSLEY HOSPITAL NHS FOUNDATION TRUST,19943332,"72,098.00"
Department of Health,NHS Sheffield CCG,31/12/2017,C&M-PMS Contract Value,PRC DELEGATED CO-COMMISSIONING,BARNSLEY ROAD SURGERY,20019840,"21,360.14"
Department of Health,NHS Sheffield CCG,31/12/2017,C&M-PMS Funding Differential Review,PRC DELEGATED CO-COMMISSIONING,BARNSLEY ROAD SURGERY,20019840,370.25
Department of Health,NHS Sheffield CCG,31/12/2017,C&M-PMS PCO Other,PRC DELEGATED CO-COMMISSIONING,BARNSLEY ROAD SURGERY,20019840,384.5
Department of Health,NHS Sheffield CCG,31/12/2017,C&M-PMS PCO Seniority,PRC DELEGATED CO-COMMISSIONING,BARNSLEY ROAD SURGERY,20019840,"1,605.00"
Department of Health,NHS Sheffield CCG,31/12/2017,C&M-PMS Prem Notional Rent,PRC DELEGATED CO-COMMISSIONING,BARNSLEY ROAD SURGERY,20019840,"2,652.17"
Department of Health,NHS Sheffield CCG,31/12/2017,C&M-PMS Prem Rates,PRC DELEGATED CO-COMMISSIONING,BARNSLEY ROAD SURGERY,20019840,629
Department of Health,NHS Sheffield CCG,31/12/2017,C&M-PMS QOF Aspiration,PRC DELEGATED CO-COMMISSIONING,BARNSLEY ROAD SURGERY,20019840,"2,500.90"
Department of Health,NHS Sheffield CCG,31/12/2017,C&M-GMS Cost of Drugs -Prescribing,LOCAL ENHANCED SERVICES,BASLOW ROAD & SHOREHAM STREET SURGERIES,20197270,"11,735.18"
Department of Health,NHS Sheffield CCG,31/12/2017,C&M-GMS DES Extended Hours Access,PRC DELEGATED CO-COMMISSIONING,BASLOW ROAD & SHOREHAM STREET SURGERIES,20197270,"5,949.38"
Department of Health,NHS Sheffield CCG,31/12/2017,C&M-GMS DES Learn Dsblty Hlth Chk,PRC DELEGATED CO-COMMISSIONING,BASLOW ROAD & SHOREHAM STREET SURGERIES,20197270,"1,120.00"
Department of Health,NHS Sheffield CCG,31/12/2017,C&M-GMS Global Sum,PRC DELEGATED CO-COMMISSIONING,BASLOW ROAD & SHOREHAM STREET SURGERIES,20197270,"93,544.95"
Department of Health,NHS Sheffield CCG,31/12/2017,C&M-GMS MPIG Correction Factor,PRC DELEGATED CO-COMMISSIONING,BASLOW ROAD & SHOREHAM STREET SURGERIES,20197270,438.64
Department of Health,NHS Sheffield CCG,31/12/2017,C&M-GMS PCO Seniority,PRC DELEGATED CO-COMMISSIONING,BASLOW ROAD & SHOREHAM STREET SURGERIES,20197270,"3,656.10"
Department of Health,NHS Sheffield CCG,31/12/2017,C&M-GMS Prem Notional Rent,PRC DELEGATED CO-COMMISSIONING,BASLOW ROAD & SHOREHAM STREET SURGERIES,20197270,"8,511.25"
Department of Health,NHS Sheffield CCG,31/12/2017,C&M-GMS Prem Rates,PRC DELEGATED CO-COMMISSIONING,BASLOW ROAD & SHOREHAM STREET SURGERIES,20197270,"2,062.00"
Department of Health,NHS Sheffield CCG,31/12/2017,C&M-GMS Prof Fees Prescribing,PRC DELEGATED CO-COMMISSIONING,BASLOW ROAD & SHOREHAM STREET SURGERIES,20197270,"3,283.38"
Department of Health,NHS Sheffield CCG,31/12/2017,C&M-GMS QOF Aspiration,PRC DELEGATED CO-COMMISSIONING,BASLOW ROAD & SHOREHAM STREET SURGERIES,20197270,"10,284.12"
Department of Health,NHS Sheffield CCG,31/12/2017,Cont Care-Physical Disab (65+),CHC ADULT FULLY FUNDED,BC SHEFFIELD LTD,19903647,"35,793.31"
Department of Health,NHS Sheffield CCG,31/12/2017,C&M-PMS Contract Value,PRC DELEGATED CO-COMMISSIONING,BIRLEY HEALTH CENTRE,20019842,"61,372.21"
Department of Health,NHS Sheffield CCG,31/12/2017,C&M-PMS DES Learn Dsblty Hlth Chk,PRC DELEGATED CO-COMMISSIONING,BIRLEY HEALTH CENTRE,20019842,560
Department of Health,NHS Sheffield CCG,31/12/2017,C&M-PMS Funding Differential Review,PRC DELEGATED CO-COMMISSIONING,BIRLEY HEALTH CENTRE,20019842,"2,653.00"
Department of Health,NHS Sheffield CCG,31/12/2017,C&M-PMS PCO Other,PRC DELEGATED CO-COMMISSIONING,BIRLEY HEALTH CENTRE,20019842,452.6
Department of Health,NHS Sheffield CCG,31/12/2017,C&M-PMS PCO Seniority,PRC DELEGATED CO-COMMISSIONING,BIRLEY HEALTH CENTRE,20019842,"5,535.91"
Department of Health,NHS Sheffield CCG,31/12/2017,C&M-PMS Prem Notional Rent,PRC DELEGATED CO-COMMISSIONING,BIRLEY HEALTH CENTRE,20019842,"7,775.48"
Department of Health,NHS Sheffield CCG,31/12/2017,C&M-PMS QOF Aspiration,PRC DELEGATED CO-COMMISSIONING,BIRLEY HEALTH CENTRE,20019842,"8,879.62"
Department of Health,NHS Sheffield CCG,31/12/2017,Clinical&Medical-Independent Sector,ACUTE COMMISSIONING,BMI HEALTHCARE COLLECTIONS,19943298,"77,530.74"
Department of Health,NHS Sheffield CCG,31/12/2017,C&M-GMS Cost of Drugs -Prescribing,LOCAL ENHANCED SERVICES,BROOMHILL SURGERY,20197277,"12,395.25"
Department of Health,NHS Sheffield CCG,31/12/2017,C&M-GMS DES Extended Hours Access,PRC DELEGATED CO-COMMISSIONING,BROOMHILL SURGERY,20197277,"4,512.03"
Department of Health,NHS Sheffield CCG,31/12/2017,C&M-GMS DES Learn Dsblty Hlth Chk,PRC DELEGATED CO-COMMISSIONING,BROOMHILL SURGERY,20197277,"1,540.00"
Department of Health,NHS Sheffield CCG,31/12/2017,C&M-GMS Global Sum,PRC DELEGATED CO-COMMISSIONING,BROOMHILL SURGERY,20197277,"60,904.48"
Department of Health,NHS Sheffield CCG,31/12/2017,C&M-GMS MPIG Correction Factor,PRC DELEGATED CO-COMMISSIONING,BROOMHILL SURGERY,20197277,753.01
Department of Health,NHS Sheffield CCG,31/12/2017,C&M-GMS PCO Seniority,PRC DELEGATED CO-COMMISSIONING,BROOMHILL SURGERY,20197277,"4,657.77"
Department of Health,NHS Sheffield CCG,31/12/2017,C&M-GMS Prem Cost Rent,PRC DELEGATED CO-COMMISSIONING,BROOMHILL SURGERY,20197277,"3,380.00"
Department of Health,NHS Sheffield CCG,31/12/2017,C&M-GMS Prem Notional Rent,PRC DELEGATED CO-COMMISSIONING,BROOMHILL SURGERY,20197277,"2,541.67"
Department of Health,NHS Sheffield CCG,31/12/2017,C&M-GMS Prem Rates,PRC DELEGATED CO-COMMISSIONING,BROOMHILL SURGERY,20197277,"1,794.00"
Department of Health,NHS Sheffield CCG,31/12/2017,C&M-GMS Prof Fees Prescribing,PRC DELEGATED CO-COMMISSIONING,BROOMHILL SURGERY,20197277,"3,295.82"
Department of Health,NHS Sheffield CCG,31/12/2017,C&M-GMS QOF Aspiration,PRC DELEGATED CO-COMMISSIONING,BROOMHILL SURGERY,20197277,"6,516.86"
Department of Health,NHS Sheffield CCG,31/12/2017,C&M-GMS Cost of Drugs -Prescribing,LOCAL ENHANCED SERVICES,BUCHANAN ROAD SURGERY,20197273,129.82
Department of Health,NHS Sheffield CCG,31/12/2017,C&M-GMS Global Sum,PRC DELEGATED CO-COMMISSIONING,BUCHANAN ROAD SURGERY,20197273,"34,978.06"
Department of Health,NHS Sheffield CCG,31/12/2017,C&M-GMS MPIG Correction Factor,PRC DELEGATED CO-COMMISSIONING,BUCHANAN ROAD SURGERY,20197273,"1,965.76"
Department of Health,NHS Sheffield CCG,31/12/2017,C&M-GMS PCO Seniority,PRC DELEGATED CO-COMMISSIONING,BUCHANAN ROAD SURGERY,20197273,673.12
Department of Health,NHS Sheffield CCG,31/12/2017,C&M-GMS Prem Notional Rent,PRC DELEGATED CO-COMMISSIONING,BUCHANAN ROAD SURGERY,20197273,"2,595.83"
Department of Health,NHS Sheffield CCG,31/12/2017,C&M-GMS Prem Rates,PRC DELEGATED CO-COMMISSIONING,BUCHANAN ROAD SURGERY,20197273,839
Department of Health,NHS Sheffield CCG,31/12/2017,C&M-GMS Prof Fees Prescribing,PRC DELEGATED CO-COMMISSIONING,BUCHANAN ROAD SURGERY,20197273,46.39
Department of Health,NHS Sheffield CCG,31/12/2017,C&M-GMS QOF Aspiration,PRC DELEGATED CO-COMMISSIONING,BUCHANAN ROAD SURGERY,20197273,"4,538.47"
Department of Health,NHS Sheffield CCG,31/12/2017,C&M-PMS Contract Value,PRC DELEGATED CO-COMMISSIONING,BURNCROSS SURGERY,20019844,"118,437.85"
Department of Health,NHS Sheffield CCG,31/12/2017,C&M-PMS DES Learn Dsblty Hlth Chk,PRC DELEGATED CO-COMMISSIONING,BURNCROSS SURGERY,20019844,"1,540.00"
Department of Health,NHS Sheffield CCG,31/12/2017,C&M-PMS Funding Differential Review,PRC DELEGATED CO-COMMISSIONING,BURNCROSS SURGERY,20019844,"1,648.42"
Department of Health,NHS Sheffield CCG,31/12/2017,C&M-PMS PCO Seniority,PRC DELEGATED CO-COMMISSIONING,BURNCROSS SURGERY,20019844,"4,662.90"
Department of Health,NHS Sheffield CCG,31/12/2017,C&M-PMS Prem Notional Rent,PRC DELEGATED CO-COMMISSIONING,BURNCROSS SURGERY,20019844,"14,058.33"
Department of Health,NHS Sheffield CCG,31/12/2017,C&M-PMS Prem Rates,PRC DELEGATED CO-COMMISSIONING,BURNCROSS SURGERY,20019844,"2,376.30"
Department of Health,NHS Sheffield CCG,31/12/2017,C&M-PMS QOF Aspiration,PRC DELEGATED CO-COMMISSIONING,BURNCROSS SURGERY,20019844,"14,930.79"
Department of Health,NHS Sheffield CCG,31/12/2017,C&M-PMS Contract Value,PRC DELEGATED CO-COMMISSIONING,BURNGREAVE SURGERY,20019846,"54,107.28"
Department of Health,NHS Sheffield CCG,31/12/2017,C&M-PMS DES Learn Dsblty Hlth Chk,PRC DELEGATED CO-COMMISSIONING,BURNGREAVE SURGERY,20019846,"1,540.00"
Department of Health,NHS Sheffield CCG,31/12/2017,C&M-PMS Funding Differential Review,PRC DELEGATED CO-COMMISSIONING,BURNGREAVE SURGERY,20019846,"1,353.08"
Department of Health,NHS Sheffield CCG,31/12/2017,C&M-PMS Out of Hours Opt Outs,PRC DELEGATED CO-COMMISSIONING,BURNGREAVE SURGERY,20019846,6.13
Department of Health,NHS Sheffield CCG,31/12/2017,C&M-PMS PCO Seniority,PRC DELEGATED CO-COMMISSIONING,BURNGREAVE SURGERY,20019846,"1,842.60"
Department of Health,NHS Sheffield CCG,31/12/2017,C&M-PMS Prem Notional Rent,PRC DELEGATED CO-COMMISSIONING,BURNGREAVE SURGERY,20019846,"6,622.91"
Department of Health,NHS Sheffield CCG,31/12/2017,C&M-PMS Prem Rates,PRC DELEGATED CO-COMMISSIONING,BURNGREAVE SURGERY,20019846,"1,877.00"
Department of Health,NHS Sheffield CCG,31/12/2017,C&M-PMS QOF Aspiration,PRC DELEGATED CO-COMMISSIONING,BURNGREAVE SURGERY,20019846,"5,148.30"
Department of Health,NHS Sheffield CCG,31/12/2017,C&M-GMS Cost of Drugs -Prescribing,LOCAL ENHANCED SERVICES,CARTERKNOWLE & DORE MEDICAL PRACTICE,20197282,"5,755.00"
Department of Health,NHS Sheffield CCG,31/12/2017,C&M-GMS DES Extended Hours Access,PRC DELEGATED CO-COMMISSIONING,CARTERKNOWLE & DORE MEDICAL PRACTICE,20197282,"5,872.90"
Department of Health,NHS Sheffield CCG,31/12/2017,C&M-GMS DES Learn Dsblty Hlth Chk,PRC DELEGATED CO-COMMISSIONING,CARTERKNOWLE & DORE MEDICAL PRACTICE,20197282,"7,140.00"
Department of Health,NHS Sheffield CCG,31/12/2017,C&M-GMS Global Sum,PRC DELEGATED CO-COMMISSIONING,CARTERKNOWLE & DORE MEDICAL PRACTICE,20197282,"79,841.76"
Department of Health,NHS Sheffield CCG,31/12/2017,C&M-GMS MPIG Correction Factor,PRC DELEGATED CO-COMMISSIONING,CARTERKNOWLE & DORE MEDICAL PRACTICE,20197282,"2,241.88"
Department of Health,NHS Sheffield CCG,31/12/2017,C&M-GMS PCO Seniority,PRC DELEGATED CO-COMMISSIONING,CARTERKNOWLE & DORE MEDICAL PRACTICE,20197282,"3,293.68"
Department of Health,NHS Sheffield CCG,31/12/2017,C&M-GMS Prem Notional Rent,PRC DELEGATED CO-COMMISSIONING,CARTERKNOWLE & DORE MEDICAL PRACTICE,20197282,"7,538.34"
Department of Health,NHS Sheffield CCG,31/12/2017,C&M-GMS Prof Fees Prescribing,PRC DELEGATED CO-COMMISSIONING,CARTERKNOWLE & DORE MEDICAL PRACTICE,20197282,"1,077.99"
Department of Health,NHS Sheffield CCG,31/12/2017,C&M-GMS QOF Aspiration,PRC DELEGATED CO-COMMISSIONING,CARTERKNOWLE & DORE MEDICAL PRACTICE,20197282,"10,317.62"
Department of Health,NHS Sheffield CCG,31/12/2017,C&M-GMS Cost of Drugs -Prescribing,LOCAL ENHANCED SERVICES,CHARNOCK HEALTH PRIMARY CARE CENTRE,20197279,"2,101.72"
Department of Health,NHS Sheffield CCG,31/12/2017,C&M-GMS DES Extended Hours Access,PRC DELEGATED CO-COMMISSIONING,CHARNOCK HEALTH PRIMARY CARE CENTRE,20197279,"2,472.38"
Department of Health,NHS Sheffield CCG,31/12/2017,C&M-GMS Global Sum,PRC DELEGATED CO-COMMISSIONING,CHARNOCK HEALTH PRIMARY CARE CENTRE,20197279,"39,043.56"
Department of Health,NHS Sheffield CCG,31/12/2017,C&M-GMS MPIG Correction Factor,PRC DELEGATED CO-COMMISSIONING,CHARNOCK HEALTH PRIMARY CARE CENTRE,20197279,619.87
Department of Health,NHS Sheffield CCG,31/12/2017,C&M-GMS PCO Other,PRC DELEGATED CO-COMMISSIONING,CHARNOCK HEALTH PRIMARY CARE CENTRE,20197279,452.6
Department of Health,NHS Sheffield CCG,31/12/2017,C&M-GMS PCO Seniority,PRC DELEGATED CO-COMMISSIONING,CHARNOCK HEALTH PRIMARY CARE CENTRE,20197279,"1,998.26"
Department of Health,NHS Sheffield CCG,31/12/2017,C&M-GMS Prem Notional Rent,PRC DELEGATED CO-COMMISSIONING,CHARNOCK HEALTH PRIMARY CARE CENTRE,20197279,305
Department of Health,NHS Sheffield CCG,31/12/2017,C&M-GMS Prem Rates,PRC DELEGATED CO-COMMISSIONING,CHARNOCK HEALTH PRIMARY CARE CENTRE,20197279,"1,111.00"
Department of Health,NHS Sheffield CCG,31/12/2017,C&M-GMS Prem Water Rates,PRC DELEGATED CO-COMMISSIONING,CHARNOCK HEALTH PRIMARY CARE CENTRE,20197279,170.51
Department of Health,NHS Sheffield CCG,31/12/2017,C&M-GMS Prof Fees Prescribing,PRC DELEGATED CO-COMMISSIONING,CHARNOCK HEALTH PRIMARY CARE CENTRE,20197279,541.21
Department of Health,NHS Sheffield CCG,31/12/2017,C&M-GMS QOF Aspiration,PRC DELEGATED CO-COMMISSIONING,CHARNOCK HEALTH PRIMARY CARE CENTRE,20197279,"4,669.55"
Department of Health,NHS Sheffield CCG,31/12/2017,Hcare Srv Rec Fdtn Trust-Contract Baseline,ACUTE COMMISSIONING,CHESTERFIELD ROYAL HOSPITAL NHS FOUNDATION TRUST,19934129,"273,318.00"
Department of Health,NHS Sheffield CCG,31/12/2017,Clinical&Medical-Independent Sector,ACUTE COMMISSIONING,CLAREMONT HOSPITAL,20028857,"78,290.00"
Department of Health,NHS Sheffield CCG,31/12/2017,Voids and Subsidies,PRC DELEGATED CO-COMMISSIONING,COMMUNITY HEALTH PARTNERSHIPS LTD,19943325,"13,201.32"
Department of Health,NHS Sheffield CCG,31/12/2017,Voids and Subsidies,RECHARGES NHS PROPERTY SERVICES LTD,COMMUNITY HEALTH PARTNERSHIPS LTD,19943325,"114,122.91"
Department of Health,NHS Sheffield CCG,31/12/2017,Cont Care-Funded Nursing Care Allow,FUNDED NURSING CARE,COUNTRY COURT CARE LTD,19990073,"32,383.30"
Department of Health,NHS Sheffield CCG,31/12/2017,Cont Care-Funded Nursing Care Allow,FUNDED NURSING CARE,COUNTRYWIDE CARE HOMES LTD,19990032,"30,429.74"
Department of Health,NHS Sheffield CCG,31/12/2017,C&M-GMS Cost of Drugs -Prescribing,LOCAL ENHANCED SERVICES,CROOKES PRACTICE,20197286,"3,256.08"
Department of Health,NHS Sheffield CCG,31/12/2017,C&M-GMS DES Extended Hours Access,PRC DELEGATED CO-COMMISSIONING,CROOKES PRACTICE,20197286,"3,688.38"
Department of Health,NHS Sheffield CCG,31/12/2017,C&M-GMS DES Learn Dsblty Hlth Chk,PRC DELEGATED CO-COMMISSIONING,CROOKES PRACTICE,20197286,"1,400.00"
Department of Health,NHS Sheffield CCG,31/12/2017,C&M-GMS Global Sum,PRC DELEGATED CO-COMMISSIONING,CROOKES PRACTICE,20197286,"47,207.91"
Department of Health,NHS Sheffield CCG,31/12/2017,C&M-GMS MPIG Correction Factor,PRC DELEGATED CO-COMMISSIONING,CROOKES PRACTICE,20197286,"2,318.88"
Department of Health,NHS Sheffield CCG,31/12/2017,C&M-GMS PCO Other,PRC DELEGATED CO-COMMISSIONING,CROOKES PRACTICE,20197286,452.6
Department of Health,NHS Sheffield CCG,31/12/2017,C&M-GMS PCO Seniority,PRC DELEGATED CO-COMMISSIONING,CROOKES PRACTICE,20197286,"2,038.20"
Department of Health,NHS Sheffield CCG,31/12/2017,C&M-GMS Prem Notional Rent,PRC DELEGATED CO-COMMISSIONING,CROOKES PRACTICE,20197286,"3,752.42"
Department of Health,NHS Sheffield CCG,31/12/2017,C&M-GMS Prem Rates,PRC DELEGATED CO-COMMISSIONING,CROOKES PRACTICE,20197286,"1,444.00"
Department of Health,NHS Sheffield CCG,31/12/2017,C&M-GMS Prem Water Rates,PRC DELEGATED CO-COMMISSIONING,CROOKES PRACTICE,20197286,229.02
Department of Health,NHS Sheffield CCG,31/12/2017,C&M-GMS Prof Fees Prescribing,PRC DELEGATED CO-COMMISSIONING,CROOKES PRACTICE,20197286,746.66
Department of Health,NHS Sheffield CCG,31/12/2017,C&M-GMS QOF Aspiration,PRC DELEGATED CO-COMMISSIONING,CROOKES PRACTICE,20197286,"4,702.76"
Department of Health,NHS Sheffield CCG,31/12/2017,C&M-PMS Contract Value,PRC DELEGATED CO-COMMISSIONING,DEEPCAR MEDICAL CENTRE,20019850,"39,010.85"
Department of Health,NHS Sheffield CCG,31/12/2017,C&M-PMS Funding Differential Review,PRC DELEGATED CO-COMMISSIONING,DEEPCAR MEDICAL CENTRE,20019850,306.08
Department of Health,NHS Sheffield CCG,31/12/2017,C&M-PMS PCO Seniority,PRC DELEGATED CO-COMMISSIONING,DEEPCAR MEDICAL CENTRE,20019850,"1,427.82"
Department of Health,NHS Sheffield CCG,31/12/2017,C&M-PMS Prem Healthcentre Rent,PRC DELEGATED CO-COMMISSIONING,DEEPCAR MEDICAL CENTRE,20019850,"27,983.03"
Department of Health,NHS Sheffield CCG,31/12/2017,C&M-PMS QOF Aspiration,PRC DELEGATED CO-COMMISSIONING,DEEPCAR MEDICAL CENTRE,20019850,"4,452.12"
Department of Health,NHS Sheffield CCG,31/12/2017,Other professional fees,BEREAVEMENT SERVICE,DELOITTE MCS LTD,20077225,"29,880.00"
Department of Health,NHS Sheffield CCG,31/12/2017,C&M-GMS Cost of Drugs -Prescribing,LOCAL ENHANCED SERVICES,DEVONSHIRE GREEN MEDICAL CENTRE,20197291,"2,676.77"
Department of Health,NHS Sheffield CCG,31/12/2017,C&M-GMS Global Sum,PRC DELEGATED CO-COMMISSIONING,DEVONSHIRE GREEN MEDICAL CENTRE,20197291,"43,424.76"
Department of Health,NHS Sheffield CCG,31/12/2017,C&M-GMS MPIG Correction Factor,PRC DELEGATED CO-COMMISSIONING,DEVONSHIRE GREEN MEDICAL CENTRE,20197291,"4,846.80"
Department of Health,NHS Sheffield CCG,31/12/2017,C&M-GMS PCO Seniority,PRC DELEGATED CO-COMMISSIONING,DEVONSHIRE GREEN MEDICAL CENTRE,20197291,"4,357.96"
Department of Health,NHS Sheffield CCG,31/12/2017,C&M-GMS Prem Notional Rent,PRC DELEGATED CO-COMMISSIONING,DEVONSHIRE GREEN MEDICAL CENTRE,20197291,"5,987.50"
Department of Health,NHS Sheffield CCG,31/12/2017,C&M-GMS Prof Fees Prescribing,PRC DELEGATED CO-COMMISSIONING,DEVONSHIRE GREEN MEDICAL CENTRE,20197291,766.53
Department of Health,NHS Sheffield CCG,31/12/2017,C&M-GMS QOF Aspiration,PRC DELEGATED CO-COMMISSIONING,DEVONSHIRE GREEN MEDICAL CENTRE,20197291,"5,205.83"
Department of Health,NHS Sheffield CCG,31/12/2017,C&M-PMS Contract Value,PRC DELEGATED CO-COMMISSIONING,DOVERCOURT SURGERY,20019852,"68,639.95"
Department of Health,NHS Sheffield CCG,31/12/2017,C&M-PMS Funding Differential Review,PRC DELEGATED CO-COMMISSIONING,DOVERCOURT SURGERY,20019852,"3,616.08"
Department of Health,NHS Sheffield CCG,31/12/2017,C&M-PMS PCO Seniority,PRC DELEGATED CO-COMMISSIONING,DOVERCOURT SURGERY,20019852,"1,842.60"
Department of Health,NHS Sheffield CCG,31/12/2017,C&M-PMS Prem Actual Rent,PRC DELEGATED CO-COMMISSIONING,DOVERCOURT SURGERY,20019852,"12,400.00"
Department of Health,NHS Sheffield CCG,31/12/2017,C&M-PMS Prem Notional Rent,PRC DELEGATED CO-COMMISSIONING,DOVERCOURT SURGERY,20019852,"1,708.34"
Department of Health,NHS Sheffield CCG,31/12/2017,C&M-PMS QOF Aspiration,PRC DELEGATED CO-COMMISSIONING,DOVERCOURT SURGERY,20019852,"7,505.03"
Department of Health,NHS Sheffield CCG,31/12/2017,C&M-PMS Contract Value,PRC DELEGATED CO-COMMISSIONING,DR MEHROTRA & PARTNER,20019854,"27,162.37"
Department of Health,NHS Sheffield CCG,31/12/2017,C&M-PMS DES Learn Dsblty Hlth Chk,PRC DELEGATED CO-COMMISSIONING,DR MEHROTRA & PARTNER,20019854,700
Department of Health,NHS Sheffield CCG,31/12/2017,C&M-PMS Funding Differential Review,PRC DELEGATED CO-COMMISSIONING,DR MEHROTRA & PARTNER,20019854,885.92
Department of Health,NHS Sheffield CCG,31/12/2017,C&M-PMS PCO Other,PRC DELEGATED CO-COMMISSIONING,DR MEHROTRA & PARTNER,20019854,384.5
Department of Health,NHS Sheffield CCG,31/12/2017,C&M-PMS PCO Seniority,PRC DELEGATED CO-COMMISSIONING,DR MEHROTRA & PARTNER,20019854,637.24
Department of Health,NHS Sheffield CCG,31/12/2017,C&M-PMS Prem Notional Rent,PRC DELEGATED CO-COMMISSIONING,DR MEHROTRA & PARTNER,20019854,"5,157.33"
Department of Health,NHS Sheffield CCG,31/12/2017,C&M-PMS Prem Rates,PRC DELEGATED CO-COMMISSIONING,DR MEHROTRA & PARTNER,20019854,"1,322.00"
Department of Health,NHS Sheffield CCG,31/12/2017,C&M-PMS Prem Water Rates,PRC DELEGATED CO-COMMISSIONING,DR MEHROTRA & PARTNER,20019854,37.06
Department of Health,NHS Sheffield CCG,31/12/2017,C&M-PMS QOF Aspiration,PRC DELEGATED CO-COMMISSIONING,DR MEHROTRA & PARTNER,20019854,"3,389.93"
Department of Health,NHS Sheffield CCG,31/12/2017,C&M-PMS Contract Value,PRC DELEGATED CO-COMMISSIONING,DR MILNER & PARTNERS,20019856,"72,194.42"
Department of Health,NHS Sheffield CCG,31/12/2017,C&M-PMS DES Learn Dsblty Hlth Chk,PRC DELEGATED CO-COMMISSIONING,DR MILNER & PARTNERS,20019856,"1,400.00"
Department of Health,NHS Sheffield CCG,31/12/2017,C&M-PMS Funding Differential Review,PRC DELEGATED CO-COMMISSIONING,DR MILNER & PARTNERS,20019856,"4,581.42"
Department of Health,NHS Sheffield CCG,31/12/2017,C&M-PMS PCO Locum Adop/Pat/Mat,PRC DELEGATED CO-COMMISSIONING,DR MILNER & PARTNERS,20019856,"5,201.54"
Department of Health,NHS Sheffield CCG,31/12/2017,C&M-PMS PCO Seniority,PRC DELEGATED CO-COMMISSIONING,DR MILNER & PARTNERS,20019856,"1,752.50"
Department of Health,NHS Sheffield CCG,31/12/2017,C&M-PMS Prem Actual Rent,PRC DELEGATED CO-COMMISSIONING,DR MILNER & PARTNERS,20019856,"11,382.00"
Department of Health,NHS Sheffield CCG,31/12/2017,C&M-PMS Prem Notional Rent,PRC DELEGATED CO-COMMISSIONING,DR MILNER & PARTNERS,20019856,"4,462.41"
Department of Health,NHS Sheffield CCG,31/12/2017,C&M-PMS Prem Rates,PRC DELEGATED CO-COMMISSIONING,DR MILNER & PARTNERS,20019856,"1,921.00"
Department of Health,NHS Sheffield CCG,31/12/2017,C&M-PMS QOF Aspiration,PRC DELEGATED CO-COMMISSIONING,DR MILNER & PARTNERS,20019856,"7,385.62"
Department of Health,NHS Sheffield CCG,31/12/2017,C&M-GMS Cost of Drugs -Prescribing,LOCAL ENHANCED SERVICES,DUKE MEDICAL CENTRE,20197299,"4,462.48"
Department of Health,NHS Sheffield CCG,31/12/2017,C&M-GMS DES Extended Hours Access,PRC DELEGATED CO-COMMISSIONING,DUKE MEDICAL CENTRE,20197299,"3,191.05"
Department of Health,NHS Sheffield CCG,31/12/2017,C&M-GMS DES Learn Dsblty Hlth Chk,PRC DELEGATED CO-COMMISSIONING,DUKE MEDICAL CENTRE,20197299,"1,120.00"
Department of Health,NHS Sheffield CCG,31/12/2017,C&M-GMS Global Sum,PRC DELEGATED CO-COMMISSIONING,DUKE MEDICAL CENTRE,20197299,"54,296.42"
Department of Health,NHS Sheffield CCG,31/12/2017,C&M-GMS MPIG Correction Factor,PRC DELEGATED CO-COMMISSIONING,DUKE MEDICAL CENTRE,20197299,918.76
Department of Health,NHS Sheffield CCG,31/12/2017,C&M-GMS PCO Seniority,PRC DELEGATED CO-COMMISSIONING,DUKE MEDICAL CENTRE,20197299,"1,699.47"
Department of Health,NHS Sheffield CCG,31/12/2017,C&M-GMS Prem Notional Rent,PRC DELEGATED CO-COMMISSIONING,DUKE MEDICAL CENTRE,20197299,"5,721.67"
Department of Health,NHS Sheffield CCG,31/12/2017,C&M-GMS Prof Fees Prescribing,PRC DELEGATED CO-COMMISSIONING,DUKE MEDICAL CENTRE,20197299,"1,261.34"
Department of Health,NHS Sheffield CCG,31/12/2017,C&M-GMS QOF Aspiration,PRC DELEGATED CO-COMMISSIONING,DUKE MEDICAL CENTRE,20197299,"5,346.37"
Department of Health,NHS Sheffield CCG,31/12/2017,C&M-PMS Contract Value,PRC DELEGATED CO-COMMISSIONING,DUNNINC ROAD SURGERY,20019858,"23,292.54"
Department of Health,NHS Sheffield CCG,31/12/2017,C&M-PMS Funding Differential Review,PRC DELEGATED CO-COMMISSIONING,DUNNINC ROAD SURGERY,20019858,"1,218.67"
Department of Health,NHS Sheffield CCG,31/12/2017,C&M-PMS PCO Seniority,PRC DELEGATED CO-COMMISSIONING,DUNNINC ROAD SURGERY,20019858,"2,115.59"
Department of Health,NHS Sheffield CCG,31/12/2017,C&M-PMS Prem Actual Rent,PRC DELEGATED CO-COMMISSIONING,DUNNINC ROAD SURGERY,20019858,54.38
Department of Health,NHS Sheffield CCG,31/12/2017,C&M-PMS Prem Notional Rent,PRC DELEGATED CO-COMMISSIONING,DUNNINC ROAD SURGERY,20019858,"1,664.59"
Department of Health,NHS Sheffield CCG,31/12/2017,C&M-PMS QOF Aspiration,PRC DELEGATED CO-COMMISSIONING,DUNNINC ROAD SURGERY,20019858,"2,548.20"
Department of Health,NHS Sheffield CCG,31/12/2017,C&M-PMS Contract Value,PRC DELEGATED CO-COMMISSIONING,DYKES HALL MEDICAL CENTRE,20019860,"70,491.01"
Department of Health,NHS Sheffield CCG,31/12/2017,C&M-PMS Funding Differential Review,PRC DELEGATED CO-COMMISSIONING,DYKES HALL MEDICAL CENTRE,20019860,199.75
Department of Health,NHS Sheffield CCG,31/12/2017,C&M-PMS PCO Doctors Ret Scheme,PRC DELEGATED CO-COMMISSIONING,DYKES HALL MEDICAL CENTRE,20019860,"1,336.95"
Department of Health,NHS Sheffield CCG,31/12/2017,C&M-PMS PCO Seniority,PRC DELEGATED CO-COMMISSIONING,DYKES HALL MEDICAL CENTRE,20019860,"2,790.47"
Department of Health,NHS Sheffield CCG,31/12/2017,C&M-PMS Prem Notional Rent,PRC DELEGATED CO-COMMISSIONING,DYKES HALL MEDICAL CENTRE,20019860,"5,300.83"
Department of Health,NHS Sheffield CCG,31/12/2017,C&M-PMS QOF Aspiration,PRC DELEGATED CO-COMMISSIONING,DYKES HALL MEDICAL CENTRE,20019860,"8,863.43"
Department of Health,NHS Sheffield CCG,31/12/2017,C&M-PMS Contract Value,PRC DELEGATED CO-COMMISSIONING,EAST BANK MEDICAL CENTRE,20019862,"45,118.80"
Department of Health,NHS Sheffield CCG,31/12/2017,C&M-PMS Funding Differential Review,PRC DELEGATED CO-COMMISSIONING,EAST BANK MEDICAL CENTRE,20019862,"1,588.17"
Department of Health,NHS Sheffield CCG,31/12/2017,C&M-PMS Out of Hours Opt Outs,PRC DELEGATED CO-COMMISSIONING,EAST BANK MEDICAL CENTRE,20019862,25.26
Department of Health,NHS Sheffield CCG,31/12/2017,C&M-PMS PCO Seniority,PRC DELEGATED CO-COMMISSIONING,EAST BANK MEDICAL CENTRE,20019862,"1,359.96"
Department of Health,NHS Sheffield CCG,31/12/2017,C&M-PMS Prem Notional Rent,PRC DELEGATED CO-COMMISSIONING,EAST BANK MEDICAL CENTRE,20019862,"10,466.67"
Department of Health,NHS Sheffield CCG,31/12/2017,C&M-PMS Prem Rates,PRC DELEGATED CO-COMMISSIONING,EAST BANK MEDICAL CENTRE,20019862,"4,981.00"
Department of Health,NHS Sheffield CCG,31/12/2017,C&M-PMS QOF Aspiration,PRC DELEGATED CO-COMMISSIONING,EAST BANK MEDICAL CENTRE,20019862,"5,086.87"
Department of Health,NHS Sheffield CCG,31/12/2017,C&M-GMS Cost of Drugs -Prescribing,LOCAL ENHANCED SERVICES,ECCLESFIELD GROUP PRACTICE,20197295,"7,205.25"
Department of Health,NHS Sheffield CCG,31/12/2017,C&M-GMS DES Extended Hours Access,PRC DELEGATED CO-COMMISSIONING,ECCLESFIELD GROUP PRACTICE,20197295,"3,814.73"
Department of Health,NHS Sheffield CCG,31/12/2017,C&M-GMS Global Sum,PRC DELEGATED CO-COMMISSIONING,ECCLESFIELD GROUP PRACTICE,20197295,"63,522.58"
Department of Health,NHS Sheffield CCG,31/12/2017,C&M-GMS PCO Other,PRC DELEGATED CO-COMMISSIONING,ECCLESFIELD GROUP PRACTICE,20197295,452.6
Department of Health,NHS Sheffield CCG,31/12/2017,C&M-GMS PCO Seniority,PRC DELEGATED CO-COMMISSIONING,ECCLESFIELD GROUP PRACTICE,20197295,"3,670.32"
Department of Health,NHS Sheffield CCG,31/12/2017,C&M-GMS Prem Notional Rent,PRC DELEGATED CO-COMMISSIONING,ECCLESFIELD GROUP PRACTICE,20197295,"6,805.42"
Department of Health,NHS Sheffield CCG,31/12/2017,C&M-GMS Prem Rates,PRC DELEGATED CO-COMMISSIONING,ECCLESFIELD GROUP PRACTICE,20197295,"2,055.00"
Department of Health,NHS Sheffield CCG,31/12/2017,C&M-GMS Prof Fees Prescribing,PRC DELEGATED CO-COMMISSIONING,ECCLESFIELD GROUP PRACTICE,20197295,"1,972.64"
Department of Health,NHS Sheffield CCG,31/12/2017,C&M-GMS QOF Aspiration,PRC DELEGATED CO-COMMISSIONING,ECCLESFIELD GROUP PRACTICE,20197295,"10,399.72"
Department of Health,NHS Sheffield CCG,31/12/2017,C&M-GMS Cost of Drugs -Prescribing,LOCAL ENHANCED SERVICES,ELM LANE SURGERY,20197297,"6,347.67"
Department of Health,NHS Sheffield CCG,31/12/2017,C&M-GMS DES Learn Dsblty Hlth Chk,PRC DELEGATED CO-COMMISSIONING,ELM LANE SURGERY,20197297,420
Department of Health,NHS Sheffield CCG,31/12/2017,C&M-GMS Global Sum,PRC DELEGATED CO-COMMISSIONING,ELM LANE SURGERY,20197297,"38,199.17"
Department of Health,NHS Sheffield CCG,31/12/2017,C&M-GMS MPIG Correction Factor,PRC DELEGATED CO-COMMISSIONING,ELM LANE SURGERY,20197297,"1,257.79"
Department of Health,NHS Sheffield CCG,31/12/2017,C&M-GMS PCO Seniority,PRC DELEGATED CO-COMMISSIONING,ELM LANE SURGERY,20197297,"1,442.42"
Department of Health,NHS Sheffield CCG,31/12/2017,C&M-GMS Prem Notional Rent,PRC DELEGATED CO-COMMISSIONING,ELM LANE SURGERY,20197297,"5,168.50"
Department of Health,NHS Sheffield CCG,31/12/2017,C&M-GMS Prem Rates,PRC DELEGATED CO-COMMISSIONING,ELM LANE SURGERY,20197297,"1,268.00"
Department of Health,NHS Sheffield CCG,31/12/2017,C&M-GMS Prof Fees Prescribing,PRC DELEGATED CO-COMMISSIONING,ELM LANE SURGERY,20197297,"1,729.64"
Department of Health,NHS Sheffield CCG,31/12/2017,C&M-GMS QOF Aspiration,PRC DELEGATED CO-COMMISSIONING,ELM LANE SURGERY,20197297,"4,880.72"
Department of Health,NHS Sheffield CCG,31/12/2017,Cont Care-Physical Disab (<65),CHC ADULT FULLY FUNDED,FAIRWINDS HEALTH CARE LTD,20028930,"45,486.03"
Department of Health,NHS Sheffield CCG,31/12/2017,C&M-PMS Contract Value,PRC DELEGATED CO-COMMISSIONING,FALKLAND HOUSE,20019866,"26,591.60"
Department of Health,NHS Sheffield CCG,31/12/2017,C&M-PMS Funding Differential Review,PRC DELEGATED CO-COMMISSIONING,FALKLAND HOUSE,20019866,"1,255.92"
Department of Health,NHS Sheffield CCG,31/12/2017,C&M-PMS Out of Hours Opt Outs,PRC DELEGATED CO-COMMISSIONING,FALKLAND HOUSE,20019866,83.02
Department of Health,NHS Sheffield CCG,31/12/2017,C&M-PMS PCO Other,PRC DELEGATED CO-COMMISSIONING,FALKLAND HOUSE,20019866,384.5
Department of Health,NHS Sheffield CCG,31/12/2017,C&M-PMS PCO Seniority,PRC DELEGATED CO-COMMISSIONING,FALKLAND HOUSE,20019866,"1,453.86"
Department of Health,NHS Sheffield CCG,31/12/2017,C&M-PMS Prem Notional Rent,PRC DELEGATED CO-COMMISSIONING,FALKLAND HOUSE,20019866,"1,802.08"
Department of Health,NHS Sheffield CCG,31/12/2017,C&M-PMS Prem Rates,PRC DELEGATED CO-COMMISSIONING,FALKLAND HOUSE,20019866,713
Department of Health,NHS Sheffield CCG,31/12/2017,C&M-PMS QOF Aspiration,PRC DELEGATED CO-COMMISSIONING,FALKLAND HOUSE,20019866,"3,036.47"
Department of Health,NHS Sheffield CCG,31/12/2017,C&M-GMS Cost of Drugs -Prescribing,LOCAL ENHANCED SERVICES,FAR LANE MEDICAL CENTRE,20197306,"3,061.81"
Department of Health,NHS Sheffield CCG,31/12/2017,C&M-GMS Global Sum,PRC DELEGATED CO-COMMISSIONING,FAR LANE MEDICAL CENTRE,20197306,"53,615.34"
Department of Health,NHS Sheffield CCG,31/12/2017,C&M-GMS PCO Other,PRC DELEGATED CO-COMMISSIONING,FAR LANE MEDICAL CENTRE,20197306,452.6
Department of Health,NHS Sheffield CCG,31/12/2017,C&M-GMS PCO Seniority,PRC DELEGATED CO-COMMISSIONING,FAR LANE MEDICAL CENTRE,20197306,"5,011.85"
Department of Health,NHS Sheffield CCG,31/12/2017,C&M-GMS Prem Notional Rent,PRC DELEGATED CO-COMMISSIONING,FAR LANE MEDICAL CENTRE,20197306,"3,462.50"
Department of Health,NHS Sheffield CCG,31/12/2017,C&M-GMS Prem Rates,PRC DELEGATED CO-COMMISSIONING,FAR LANE MEDICAL CENTRE,20197306,"1,053.00"
Department of Health,NHS Sheffield CCG,31/12/2017,C&M-GMS Prof Fees Prescribing,PRC DELEGATED CO-COMMISSIONING,FAR LANE MEDICAL CENTRE,20197306,969.76
Department of Health,NHS Sheffield CCG,31/12/2017,C&M-GMS QOF Aspiration,PRC DELEGATED CO-COMMISSIONING,FAR LANE MEDICAL CENTRE,20197306,"6,224.50"
Department of Health,NHS Sheffield CCG,31/12/2017,C&M-PMS Contract Value,PRC DELEGATED CO-COMMISSIONING,FIRTH PARK SURGERY,20019864,"70,644.61"
Department of Health,NHS Sheffield CCG,31/12/2017,C&M-PMS Out of Hours Opt Outs,PRC DELEGATED CO-COMMISSIONING,FIRTH PARK SURGERY,20019864,1
Department of Health,NHS Sheffield CCG,31/12/2017,C&M-PMS PCO Seniority,PRC DELEGATED CO-COMMISSIONING,FIRTH PARK SURGERY,20019864,"2,906.05"
Department of Health,NHS Sheffield CCG,31/12/2017,C&M-PMS Prem Notional Rent,PRC DELEGATED CO-COMMISSIONING,FIRTH PARK SURGERY,20019864,"4,500.00"
Department of Health,NHS Sheffield CCG,31/12/2017,C&M-PMS Prem Rates,PRC DELEGATED CO-COMMISSIONING,FIRTH PARK SURGERY,20019864,"1,291.00"
Department of Health,NHS Sheffield CCG,31/12/2017,C&M-PMS Prem Water Rates,PRC DELEGATED CO-COMMISSIONING,FIRTH PARK SURGERY,20019864,212.39
Department of Health,NHS Sheffield CCG,31/12/2017,C&M-PMS QOF Aspiration,PRC DELEGATED CO-COMMISSIONING,FIRTH PARK SURGERY,20019864,"8,194.20"
Department of Health,NHS Sheffield CCG,31/12/2017,C&M-GMS Cost of Drugs -Prescribing,LOCAL ENHANCED SERVICES,FLOWERS HEALTH CENTRE,20197378,"6,359.13"
Department of Health,NHS Sheffield CCG,31/12/2017,C&M-GMS Global Sum,PRC DELEGATED CO-COMMISSIONING,FLOWERS HEALTH CENTRE,20197378,"33,569.77"
Department of Health,NHS Sheffield CCG,31/12/2017,C&M-GMS MPIG Correction Factor,PRC DELEGATED CO-COMMISSIONING,FLOWERS HEALTH CENTRE,20197378,"2,214.46"
Department of Health,NHS Sheffield CCG,31/12/2017,C&M-GMS PCO Seniority,PRC DELEGATED CO-COMMISSIONING,FLOWERS HEALTH CENTRE,20197378,"1,477.36"
Department of Health,NHS Sheffield CCG,31/12/2017,C&M-GMS Prem Healthcentre Rent,PRC DELEGATED CO-COMMISSIONING,FLOWERS HEALTH CENTRE,20197378,"33,513.30"
Department of Health,NHS Sheffield CCG,31/12/2017,C&M-GMS Prof Fees Prescribing,PRC DELEGATED CO-COMMISSIONING,FLOWERS HEALTH CENTRE,20197378,"1,459.66"
Department of Health,NHS Sheffield CCG,31/12/2017,C&M-GMS QOF Aspiration,PRC DELEGATED CO-COMMISSIONING,FLOWERS HEALTH CENTRE,20197378,"4,334.56"
Department of Health,NHS Sheffield CCG,31/12/2017,C&M-PMS Contract Value,PRC DELEGATED CO-COMMISSIONING,FOXHILL MEDICAL CENTRE SHEFFIELD,20019917,"50,364.37"
Department of Health,NHS Sheffield CCG,31/12/2017,C&M-PMS DES Learn Dsblty Hlth Chk,PRC DELEGATED CO-COMMISSIONING,FOXHILL MEDICAL CENTRE SHEFFIELD,20019917,"1,120.00"
Department of Health,NHS Sheffield CCG,31/12/2017,C&M-PMS Funding Differential Review,PRC DELEGATED CO-COMMISSIONING,FOXHILL MEDICAL CENTRE SHEFFIELD,20019917,"1,451.25"
Department of Health,NHS Sheffield CCG,31/12/2017,C&M-PMS Out of Hours Opt Outs,PRC DELEGATED CO-COMMISSIONING,FOXHILL MEDICAL CENTRE SHEFFIELD,20019917,12.3
Department of Health,NHS Sheffield CCG,31/12/2017,C&M-PMS PCO Other,PRC DELEGATED CO-COMMISSIONING,FOXHILL MEDICAL CENTRE SHEFFIELD,20019917,452.6
Department of Health,NHS Sheffield CCG,31/12/2017,C&M-PMS PCO Seniority,PRC DELEGATED CO-COMMISSIONING,FOXHILL MEDICAL CENTRE SHEFFIELD,20019917,"3,470.26"
Department of Health,NHS Sheffield CCG,31/12/2017,C&M-PMS Prem Healthcentre Rent,PRC DELEGATED CO-COMMISSIONING,FOXHILL MEDICAL CENTRE SHEFFIELD,20019917,"46,118.26"
Department of Health,NHS Sheffield CCG,31/12/2017,C&M-PMS QOF Aspiration,PRC DELEGATED CO-COMMISSIONING,FOXHILL MEDICAL CENTRE SHEFFIELD,20019917,"5,736.75"
Department of Health,NHS Sheffield CCG,31/12/2017,C&M-PMS Contract Value,PRC DELEGATED CO-COMMISSIONING,GLEADLESS MEDICAL CENTRE,20019868,"67,346.75"
Department of Health,NHS Sheffield CCG,31/12/2017,C&M-PMS DES Learn Dsblty Hlth Chk,PRC DELEGATED CO-COMMISSIONING,GLEADLESS MEDICAL CENTRE,20019868,700
Department of Health,NHS Sheffield CCG,31/12/2017,C&M-PMS Funding Differential Review,PRC DELEGATED CO-COMMISSIONING,GLEADLESS MEDICAL CENTRE,20019868,"1,261.42"
Department of Health,NHS Sheffield CCG,31/12/2017,C&M-PMS Out of Hours Opt Outs,PRC DELEGATED CO-COMMISSIONING,GLEADLESS MEDICAL CENTRE,20019868,14.94
Department of Health,NHS Sheffield CCG,31/12/2017,C&M-PMS PCO Other,PRC DELEGATED CO-COMMISSIONING,GLEADLESS MEDICAL CENTRE,20019868,452.6
Department of Health,NHS Sheffield CCG,31/12/2017,C&M-PMS PCO Seniority,PRC DELEGATED CO-COMMISSIONING,GLEADLESS MEDICAL CENTRE,20019868,"4,048.97"
Department of Health,NHS Sheffield CCG,31/12/2017,C&M-PMS Prem Notional Rent,PRC DELEGATED CO-COMMISSIONING,GLEADLESS MEDICAL CENTRE,20019868,"6,750.00"
Department of Health,NHS Sheffield CCG,31/12/2017,C&M-PMS Prem Rates,PRC DELEGATED CO-COMMISSIONING,GLEADLESS MEDICAL CENTRE,20019868,"1,250.00"
Department of Health,NHS Sheffield CCG,31/12/2017,C&M-PMS Prem Water Rates,PRC DELEGATED CO-COMMISSIONING,GLEADLESS MEDICAL CENTRE,20019868,231.43
Department of Health,NHS Sheffield CCG,31/12/2017,C&M-PMS QOF Aspiration,PRC DELEGATED CO-COMMISSIONING,GLEADLESS MEDICAL CENTRE,20019868,"8,204.51"
Department of Health,NHS Sheffield CCG,31/12/2017,C&M-GMS Cost of Drugs -Prescribing,LOCAL ENHANCED SERVICES,GRENOSIDE SURGERY,20197312,"4,781.43"
Department of Health,NHS Sheffield CCG,31/12/2017,C&M-GMS DES Extended Hours Access,PRC DELEGATED CO-COMMISSIONING,GRENOSIDE SURGERY,20197312,"3,469.88"
Department of Health,NHS Sheffield CCG,31/12/2017,C&M-GMS Global Sum,PRC DELEGATED CO-COMMISSIONING,GRENOSIDE SURGERY,20197312,"54,311.14"
Department of Health,NHS Sheffield CCG,31/12/2017,C&M-GMS PCO Locum Adop/Pat/Mat,PRC DELEGATED CO-COMMISSIONING,GRENOSIDE SURGERY,20197312,"1,411.47"
Department of Health,NHS Sheffield CCG,31/12/2017,C&M-GMS PCO Other,PRC DELEGATED CO-COMMISSIONING,GRENOSIDE SURGERY,20197312,452.6
Department of Health,NHS Sheffield CCG,31/12/2017,C&M-GMS PCO Seniority,PRC DELEGATED CO-COMMISSIONING,GRENOSIDE SURGERY,20197312,"1,926.60"
Department of Health,NHS Sheffield CCG,31/12/2017,C&M-GMS Prem Notional Rent,PRC DELEGATED CO-COMMISSIONING,GRENOSIDE SURGERY,20197312,"8,150.17"
Department of Health,NHS Sheffield CCG,31/12/2017,C&M-GMS Prem Rates,PRC DELEGATED CO-COMMISSIONING,GRENOSIDE SURGERY,20197312,"1,643.00"
Department of Health,NHS Sheffield CCG,31/12/2017,C&M-GMS Prof Fees Prescribing,PRC DELEGATED CO-COMMISSIONING,GRENOSIDE SURGERY,20197312,"1,072.45"
Department of Health,NHS Sheffield CCG,31/12/2017,C&M-GMS QOF Aspiration,PRC DELEGATED CO-COMMISSIONING,GRENOSIDE SURGERY,20197312,"6,197.70"
Department of Health,NHS Sheffield CCG,31/12/2017,C&M-GMS Cost of Drugs -Prescribing,LOCAL ENHANCED SERVICES,GREYSTONES MEDICAL CENTRE,20197314,"3,238.14"
Department of Health,NHS Sheffield CCG,31/12/2017,C&M-GMS DES Extended Hours Access,PRC DELEGATED CO-COMMISSIONING,GREYSTONES MEDICAL CENTRE,20197314,"1,742.30"
Department of Health,NHS Sheffield CCG,31/12/2017,C&M-GMS Global Sum,PRC DELEGATED CO-COMMISSIONING,GREYSTONES MEDICAL CENTRE,20197314,"18,752.82"
Department of Health,NHS Sheffield CCG,31/12/2017,C&M-GMS MPIG Correction Factor,PRC DELEGATED CO-COMMISSIONING,GREYSTONES MEDICAL CENTRE,20197314,"1,656.69"
Department of Health,NHS Sheffield CCG,31/12/2017,C&M-GMS PCO Locum Adop/Pat/Mat,PRC DELEGATED CO-COMMISSIONING,GREYSTONES MEDICAL CENTRE,20197314,"3,983.33"
Department of Health,NHS Sheffield CCG,31/12/2017,C&M-GMS PCO Other,PRC DELEGATED CO-COMMISSIONING,GREYSTONES MEDICAL CENTRE,20197314,384.5
Department of Health,NHS Sheffield CCG,31/12/2017,C&M-GMS PCO Seniority,PRC DELEGATED CO-COMMISSIONING,GREYSTONES MEDICAL CENTRE,20197314,579.37
Department of Health,NHS Sheffield CCG,31/12/2017,C&M-GMS Prem Notional Rent,PRC DELEGATED CO-COMMISSIONING,GREYSTONES MEDICAL CENTRE,20197314,"2,885.42"
Department of Health,NHS Sheffield CCG,31/12/2017,C&M-GMS Prem Rates,PRC DELEGATED CO-COMMISSIONING,GREYSTONES MEDICAL CENTRE,20197314,583
Department of Health,NHS Sheffield CCG,31/12/2017,C&M-GMS Prof Fees Prescribing,PRC DELEGATED CO-COMMISSIONING,GREYSTONES MEDICAL CENTRE,20197314,631.77
Department of Health,NHS Sheffield CCG,31/12/2017,C&M-GMS QOF Aspiration,PRC DELEGATED CO-COMMISSIONING,GREYSTONES MEDICAL CENTRE,20197314,"2,071.10"
Department of Health,NHS Sheffield CCG,31/12/2017,C&M-PMS Contract Value,PRC DELEGATED CO-COMMISSIONING,HACKENTHORPE MEDICAL CENTRE,20019872,"46,099.02"
Department of Health,NHS Sheffield CCG,31/12/2017,C&M-PMS DES Learn Dsblty Hlth Chk,PRC DELEGATED CO-COMMISSIONING,HACKENTHORPE MEDICAL CENTRE,20019872,"1,120.00"
Department of Health,NHS Sheffield CCG,31/12/2017,C&M-PMS Funding Differential Review,PRC DELEGATED CO-COMMISSIONING,HACKENTHORPE MEDICAL CENTRE,20019872,"2,105.58"
Department of Health,NHS Sheffield CCG,31/12/2017,C&M-PMS Out of Hours Opt Outs,PRC DELEGATED CO-COMMISSIONING,HACKENTHORPE MEDICAL CENTRE,20019872,5.71
Department of Health,NHS Sheffield CCG,31/12/2017,C&M-PMS PCO Other,PRC DELEGATED CO-COMMISSIONING,HACKENTHORPE MEDICAL CENTRE,20019872,452.6
Department of Health,NHS Sheffield CCG,31/12/2017,C&M-PMS PCO Seniority,PRC DELEGATED CO-COMMISSIONING,HACKENTHORPE MEDICAL CENTRE,20019872,"2,584.10"
Department of Health,NHS Sheffield CCG,31/12/2017,C&M-PMS Prem Notional Rent,PRC DELEGATED CO-COMMISSIONING,HACKENTHORPE MEDICAL CENTRE,20019872,"4,981.25"
Department of Health,NHS Sheffield CCG,31/12/2017,C&M-PMS Prem Rates,PRC DELEGATED CO-COMMISSIONING,HACKENTHORPE MEDICAL CENTRE,20019872,972
Department of Health,NHS Sheffield CCG,31/12/2017,C&M-PMS Prem Water Rates,PRC DELEGATED CO-COMMISSIONING,HACKENTHORPE MEDICAL CENTRE,20019872,146.91
Department of Health,NHS Sheffield CCG,31/12/2017,C&M-PMS QOF Aspiration,PRC DELEGATED CO-COMMISSIONING,HACKENTHORPE MEDICAL CENTRE,20019872,"6,731.39"
Department of Health,NHS Sheffield CCG,31/12/2017,C&M-GMS Cost of Drugs -Prescribing,LOCAL ENHANCED SERVICES,HANDSWORTH MEDICAL PRACTICE SHEFFIELD,20197310,"14,618.57"
Department of Health,NHS Sheffield CCG,31/12/2017,C&M-GMS DES Extended Hours Access,PRC DELEGATED CO-COMMISSIONING,HANDSWORTH MEDICAL PRACTICE SHEFFIELD,20197310,"4,690.63"
Department of Health,NHS Sheffield CCG,31/12/2017,C&M-GMS DES Learn Dsblty Hlth Chk,PRC DELEGATED CO-COMMISSIONING,HANDSWORTH MEDICAL PRACTICE SHEFFIELD,20197310,"1,120.00"
Department of Health,NHS Sheffield CCG,31/12/2017,C&M-GMS Global Sum,PRC DELEGATED CO-COMMISSIONING,HANDSWORTH MEDICAL PRACTICE SHEFFIELD,20197310,"72,067.76"
Department of Health,NHS Sheffield CCG,31/12/2017,C&M-GMS PCO Seniority,PRC DELEGATED CO-COMMISSIONING,HANDSWORTH MEDICAL PRACTICE SHEFFIELD,20197310,"1,969.92"
Department of Health,NHS Sheffield CCG,31/12/2017,C&M-GMS Prem Notional Rent,PRC DELEGATED CO-COMMISSIONING,HANDSWORTH MEDICAL PRACTICE SHEFFIELD,20197310,"3,321.66"
Department of Health,NHS Sheffield CCG,31/12/2017,C&M-GMS Prem Rates,PRC DELEGATED CO-COMMISSIONING,HANDSWORTH MEDICAL PRACTICE SHEFFIELD,20197310,"1,214.00"
Department of Health,NHS Sheffield CCG,31/12/2017,C&M-GMS Prof Fees Prescribing,PRC DELEGATED CO-COMMISSIONING,HANDSWORTH MEDICAL PRACTICE SHEFFIELD,20197310,"3,521.74"
Department of Health,NHS Sheffield CCG,31/12/2017,C&M-GMS QOF Aspiration,PRC DELEGATED CO-COMMISSIONING,HANDSWORTH MEDICAL PRACTICE SHEFFIELD,20197310,"8,011.43"
Department of Health,NHS Sheffield CCG,31/12/2017,Cont Care-Physical Disab (<65),CHC ADULT FULLY FUNDED,HC ONE LTD,19989988,"25,186.29"
Department of Health,NHS Sheffield CCG,31/12/2017,C&M-GMS Cost of Drugs -Prescribing,LOCAL ENHANCED SERVICES,HEALTH CARE SURGERY,20197320,"4,422.31"
Department of Health,NHS Sheffield CCG,31/12/2017,C&M-GMS DES Extended Hours Access,PRC DELEGATED CO-COMMISSIONING,HEALTH CARE SURGERY,20197320,"2,360.75"
Department of Health,NHS Sheffield CCG,31/12/2017,C&M-GMS Global Sum,PRC DELEGATED CO-COMMISSIONING,HEALTH CARE SURGERY,20197320,"36,324.22"
Department of Health,NHS Sheffield CCG,31/12/2017,C&M-GMS MPIG Correction Factor,PRC DELEGATED CO-COMMISSIONING,HEALTH CARE SURGERY,20197320,"1,170.03"
Department of Health,NHS Sheffield CCG,31/12/2017,C&M-GMS PCO Other,PRC DELEGATED CO-COMMISSIONING,HEALTH CARE SURGERY,20197320,384.5
Department of Health,NHS Sheffield CCG,31/12/2017,C&M-GMS PCO Seniority,PRC DELEGATED CO-COMMISSIONING,HEALTH CARE SURGERY,20197320,637.24
Department of Health,NHS Sheffield CCG,31/12/2017,C&M-GMS Prem Notional Rent,PRC DELEGATED CO-COMMISSIONING,HEALTH CARE SURGERY,20197320,"3,862.50"
Department of Health,NHS Sheffield CCG,31/12/2017,C&M-GMS Prem Rates,PRC DELEGATED CO-COMMISSIONING,HEALTH CARE SURGERY,20197320,518
Department of Health,NHS Sheffield CCG,31/12/2017,C&M-GMS Prof Fees Prescribing,PRC DELEGATED CO-COMMISSIONING,HEALTH CARE SURGERY,20197320,"1,045.57"
Department of Health,NHS Sheffield CCG,31/12/2017,C&M-GMS QOF Aspiration,PRC DELEGATED CO-COMMISSIONING,HEALTH CARE SURGERY,20197320,"4,381.71"
Department of Health,NHS Sheffield CCG,31/12/2017,Hcare Srv Rec Fdtn Trust-Non Contract,NCAS/OATS,HEART OF ENGLAND NHS FOUNDATION TRUST,20167153,"26,626.71"
Department of Health,NHS Sheffield CCG,31/12/2017,C&M-GMS Cost of Drugs -Prescribing,LOCAL ENHANCED SERVICES,HEELEY GREEN SURGERY,20197316,"1,062.36"
Department of Health,NHS Sheffield CCG,31/12/2017,C&M-GMS DES Extended Hours Access,PRC DELEGATED CO-COMMISSIONING,HEELEY GREEN SURGERY,20197316,"2,696.10"
Department of Health,NHS Sheffield CCG,31/12/2017,C&M-GMS DES Learn Dsblty Hlth Chk,PRC DELEGATED CO-COMMISSIONING,HEELEY GREEN SURGERY,20197316,140
Department of Health,NHS Sheffield CCG,31/12/2017,C&M-GMS Global Sum,PRC DELEGATED CO-COMMISSIONING,HEELEY GREEN SURGERY,20197316,"39,703.11"
Department of Health,NHS Sheffield CCG,31/12/2017,C&M-GMS MPIG Correction Factor,PRC DELEGATED CO-COMMISSIONING,HEELEY GREEN SURGERY,20197316,564.3
Department of Health,NHS Sheffield CCG,31/12/2017,C&M-GMS PCO Seniority,PRC DELEGATED CO-COMMISSIONING,HEELEY GREEN SURGERY,20197316,911.31
Department of Health,NHS Sheffield CCG,31/12/2017,C&M-GMS Prem Notional Rent,PRC DELEGATED CO-COMMISSIONING,HEELEY GREEN SURGERY,20197316,"3,254.17"
Department of Health,NHS Sheffield CCG,31/12/2017,C&M-GMS Prem Rates,PRC DELEGATED CO-COMMISSIONING,HEELEY GREEN SURGERY,20197316,245
Department of Health,NHS Sheffield CCG,31/12/2017,C&M-GMS Prof Fees Prescribing,PRC DELEGATED CO-COMMISSIONING,HEELEY GREEN SURGERY,20197316,114.87
Department of Health,NHS Sheffield CCG,31/12/2017,C&M-GMS QOF Aspiration,PRC DELEGATED CO-COMMISSIONING,HEELEY GREEN SURGERY,20197316,"4,920.38"
Department of Health,NHS Sheffield CCG,31/12/2017,C&M-GMS Cost of Drugs -Prescribing,LOCAL ENHANCED SERVICES,HOLLIES MEDICAL CENTRE,20197318,"10,587.04"
Department of Health,NHS Sheffield CCG,31/12/2017,C&M-GMS DES Extended Hours Access,PRC DELEGATED CO-COMMISSIONING,HOLLIES MEDICAL CENTRE,20197318,"4,035.13"
Department of Health,NHS Sheffield CCG,31/12/2017,C&M-GMS DES Learn Dsblty Hlth Chk,PRC DELEGATED CO-COMMISSIONING,HOLLIES MEDICAL CENTRE,20197318,"1,820.00"
Department of Health,NHS Sheffield CCG,31/12/2017,C&M-GMS Global Sum,PRC DELEGATED CO-COMMISSIONING,HOLLIES MEDICAL CENTRE,20197318,"53,041.38"
Department of Health,NHS Sheffield CCG,31/12/2017,C&M-GMS MPIG Correction Factor,PRC DELEGATED CO-COMMISSIONING,HOLLIES MEDICAL CENTRE,20197318,"2,179.09"
Department of Health,NHS Sheffield CCG,31/12/2017,C&M-GMS PCO Other,PRC DELEGATED CO-COMMISSIONING,HOLLIES MEDICAL CENTRE,20197318,452.6
Department of Health,NHS Sheffield CCG,31/12/2017,C&M-GMS PCO Seniority,PRC DELEGATED CO-COMMISSIONING,HOLLIES MEDICAL CENTRE,20197318,"4,113.06"
Department of Health,NHS Sheffield CCG,31/12/2017,C&M-GMS Prem Notional Rent,PRC DELEGATED CO-COMMISSIONING,HOLLIES MEDICAL CENTRE,20197318,"3,229.17"
Department of Health,NHS Sheffield CCG,31/12/2017,C&M-GMS Prem Rates,PRC DELEGATED CO-COMMISSIONING,HOLLIES MEDICAL CENTRE,20197318,"1,188.00"
Department of Health,NHS Sheffield CCG,31/12/2017,C&M-GMS Prof Fees Prescribing,PRC DELEGATED CO-COMMISSIONING,HOLLIES MEDICAL CENTRE,20197318,"2,485.12"
Department of Health,NHS Sheffield CCG,31/12/2017,C&M-GMS QOF Aspiration,PRC DELEGATED CO-COMMISSIONING,HOLLIES MEDICAL CENTRE,20197318,"6,561.21"
Department of Health,NHS Sheffield CCG,31/12/2017,Cont Care-Physical Disab (<65),CHC ADULT FULLY FUNDED,HORIZON CARE HOMES LTD,20028876,"47,766.91"
Department of Health,NHS Sheffield CCG,31/12/2017,Cont Care-Physical Disab (<65),CHC ADULT FULLY FUNDED,HORIZON CARE HOMES LTD,20028883,"62,353.00"
Department of Health,NHS Sheffield CCG,31/12/2017,C&M-PMS Contract Value,PRC DELEGATED CO-COMMISSIONING,JAUNTY SPRINGS HEALTH CENTRE,20043772,"28,777.86"
Department of Health,NHS Sheffield CCG,31/12/2017,C&M-PMS DES Learn Dsblty Hlth Chk,PRC DELEGATED CO-COMMISSIONING,JAUNTY SPRINGS HEALTH CENTRE,20043772,280
Department of Health,NHS Sheffield CCG,31/12/2017,C&M-PMS Funding Differential Review,PRC DELEGATED CO-COMMISSIONING,JAUNTY SPRINGS HEALTH CENTRE,20043772,448
Department of Health,NHS Sheffield CCG,31/12/2017,C&M-PMS Out of Hours Opt Outs,PRC DELEGATED CO-COMMISSIONING,JAUNTY SPRINGS HEALTH CENTRE,20043772,4.59
Department of Health,NHS Sheffield CCG,31/12/2017,C&M-PMS PCO Other,PRC DELEGATED CO-COMMISSIONING,JAUNTY SPRINGS HEALTH CENTRE,20043772,384.5
Department of Health,NHS Sheffield CCG,31/12/2017,C&M-PMS PCO Seniority,PRC DELEGATED CO-COMMISSIONING,JAUNTY SPRINGS HEALTH CENTRE,20043772,848.05
Department of Health,NHS Sheffield CCG,31/12/2017,C&M-PMS Prem Notional Rent,PRC DELEGATED CO-COMMISSIONING,JAUNTY SPRINGS HEALTH CENTRE,20043772,"3,208.33"
Department of Health,NHS Sheffield CCG,31/12/2017,C&M-PMS Prem Rates,PRC DELEGATED CO-COMMISSIONING,JAUNTY SPRINGS HEALTH CENTRE,20043772,570
Department of Health,NHS Sheffield CCG,31/12/2017,C&M-PMS Prem Water Rates,PRC DELEGATED CO-COMMISSIONING,JAUNTY SPRINGS HEALTH CENTRE,20043772,85.01
Department of Health,NHS Sheffield CCG,31/12/2017,C&M-PMS QOF Aspiration,PRC DELEGATED CO-COMMISSIONING,JAUNTY SPRINGS HEALTH CENTRE,20043772,"4,393.31"
Department of Health,NHS Sheffield CCG,31/12/2017,C&M-GMS IT Comm Servs -GP Practices,PRIMARY CARE IT,KIER BUSINESS SERVICES LTD,19943368,"105,622.80"
Department of Health,NHS Sheffield CCG,31/12/2017,FM Computer Contracts,BUSINESS INFORMATICS,KIER BUSINESS SERVICES LTD,19943368,"37,381.20"
Department of Health,NHS Sheffield CCG,31/12/2017,C&M-GMS LES Translation Fees,INTERPRETING SERVICES,LANGUAGELINE SOLUTIONS,19989960,"32,843.40"
Department of Health,NHS Sheffield CCG,31/12/2017,C&M-GMS LES Translation Fees,INTERPRETING SERVICES,LANGUAGELINE SOLUTIONS,19989965,"40,503.72"
Department of Health,NHS Sheffield CCG,31/12/2017,Hcare Srv Rec NHS Trust-Contract Baseline,ACUTE COMMISSIONING,LEEDS TEACHING HOSPITALS NHS TRUST,19943289,"53,622.82"
Department of Health,NHS Sheffield CCG,31/12/2017,Cont Care-Physical Disab (<65),CHC ADULT FULLY FUNDED,LONGLEY HEALTH CARE LTD,19973104,"38,195.81"
Department of Health,NHS Sheffield CCG,31/12/2017,Cont Care-Funded Nursing Care Allow,FUNDED NURSING CARE,LOXLEY HEALTH CARE LTD,19990026,"28,185.77"
Department of Health,NHS Sheffield CCG,31/12/2017,Cont Care-Physical Disab (<65),CHC ADULT FULLY FUNDED,LOXLEY HEALTH CARE LTD,20028901,"79,230.56"
Department of Health,NHS Sheffield CCG,31/12/2017,C&M-PMS Contract Value,PRC DELEGATED CO-COMMISSIONING,MANCHESTER ROAD SURGERY SHEFFIELD,20019877,"30,516.25"
Department of Health,NHS Sheffield CCG,31/12/2017,C&M-PMS Funding Differential Review,PRC DELEGATED CO-COMMISSIONING,MANCHESTER ROAD SURGERY SHEFFIELD,20019877,446.67
Department of Health,NHS Sheffield CCG,31/12/2017,C&M-PMS PCO Seniority,PRC DELEGATED CO-COMMISSIONING,MANCHESTER ROAD SURGERY SHEFFIELD,20019877,"2,071.60"
Department of Health,NHS Sheffield CCG,31/12/2017,C&M-PMS Prem Cost Rent,PRC DELEGATED CO-COMMISSIONING,MANCHESTER ROAD SURGERY SHEFFIELD,20019877,"3,472.17"
Department of Health,NHS Sheffield CCG,31/12/2017,C&M-PMS Prem Notional Rent,PRC DELEGATED CO-COMMISSIONING,MANCHESTER ROAD SURGERY SHEFFIELD,20019877,442.92
Department of Health,NHS Sheffield CCG,31/12/2017,C&M-PMS Prem Rates,PRC DELEGATED CO-COMMISSIONING,MANCHESTER ROAD SURGERY SHEFFIELD,20019877,920
Department of Health,NHS Sheffield CCG,31/12/2017,C&M-PMS Prem Water Rates,PRC DELEGATED CO-COMMISSIONING,MANCHESTER ROAD SURGERY SHEFFIELD,20019877,106.99
Department of Health,NHS Sheffield CCG,31/12/2017,C&M-PMS QOF Aspiration,PRC DELEGATED CO-COMMISSIONING,MANCHESTER ROAD SURGERY SHEFFIELD,20019877,"4,335.60"
Department of Health,NHS Sheffield CCG,31/12/2017,Hcare Srv Rec Fdtn Trust-Non Contract,NCAS/OATS,MANCHESTER UNIVERSITY NHS FOUNDATION TRUST,20167043,"74,737.00"
Department of Health,NHS Sheffield CCG,31/12/2017,C&M-GMS Cost of Drugs -Prescribing,LOCAL ENHANCED SERVICES,MANOR PARK MEDICAL CENTRE SHEFFIELD,20217781,"3,164.34"
Department of Health,NHS Sheffield CCG,31/12/2017,C&M-GMS DES Extended Hours Access,PRC DELEGATED CO-COMMISSIONING,MANOR PARK MEDICAL CENTRE SHEFFIELD,20217781,"2,088.10"
Department of Health,NHS Sheffield CCG,31/12/2017,C&M-GMS DES Learn Dsblty Hlth Chk,PRC DELEGATED CO-COMMISSIONING,MANOR PARK MEDICAL CENTRE SHEFFIELD,20217781,980
Department of Health,NHS Sheffield CCG,31/12/2017,C&M-GMS Global Sum,PRC DELEGATED CO-COMMISSIONING,MANOR PARK MEDICAL CENTRE SHEFFIELD,20217781,"33,476.88"
Department of Health,NHS Sheffield CCG,31/12/2017,C&M-GMS MPIG Correction Factor,PRC DELEGATED CO-COMMISSIONING,MANOR PARK MEDICAL CENTRE SHEFFIELD,20217781,559.19
Department of Health,NHS Sheffield CCG,31/12/2017,C&M-GMS PCO Other,PRC DELEGATED CO-COMMISSIONING,MANOR PARK MEDICAL CENTRE SHEFFIELD,20217781,"3,845.00"
Department of Health,NHS Sheffield CCG,31/12/2017,C&M-GMS PCO Seniority,PRC DELEGATED CO-COMMISSIONING,MANOR PARK MEDICAL CENTRE SHEFFIELD,20217781,"1,356.88"
Department of Health,NHS Sheffield CCG,31/12/2017,C&M-GMS Prem Notional Rent,PRC DELEGATED CO-COMMISSIONING,MANOR PARK MEDICAL CENTRE SHEFFIELD,20217781,"3,050.00"
Department of Health,NHS Sheffield CCG,31/12/2017,C&M-GMS Prem Rates,PRC DELEGATED CO-COMMISSIONING,MANOR PARK MEDICAL CENTRE SHEFFIELD,20217781,428
Department of Health,NHS Sheffield CCG,31/12/2017,C&M-GMS Prem Water Rates,PRC DELEGATED CO-COMMISSIONING,MANOR PARK MEDICAL CENTRE SHEFFIELD,20217781,114.22
Department of Health,NHS Sheffield CCG,31/12/2017,C&M-GMS Prof Fees Prescribing,PRC DELEGATED CO-COMMISSIONING,MANOR PARK MEDICAL CENTRE SHEFFIELD,20217781,958.7
Department of Health,NHS Sheffield CCG,31/12/2017,C&M-GMS QOF Aspiration,PRC DELEGATED CO-COMMISSIONING,MANOR PARK MEDICAL CENTRE SHEFFIELD,20217781,"4,479.66"
Department of Health,NHS Sheffield CCG,31/12/2017,C&M-GMS Cost of Drugs -Prescribing,LOCAL ENHANCED SERVICES,MATHEWS PRACTICE,20197328,"1,587.88"
Department of Health,NHS Sheffield CCG,31/12/2017,C&M-GMS DES Extended Hours Access,PRC DELEGATED CO-COMMISSIONING,MATHEWS PRACTICE,20197328,"4,369.53"
Department of Health,NHS Sheffield CCG,31/12/2017,C&M-GMS Global Sum,PRC DELEGATED CO-COMMISSIONING,MATHEWS PRACTICE,20197328,"64,881.97"
Department of Health,NHS Sheffield CCG,31/12/2017,C&M-GMS MPIG Correction Factor,PRC DELEGATED CO-COMMISSIONING,MATHEWS PRACTICE,20197328,898.44
Department of Health,NHS Sheffield CCG,31/12/2017,C&M-GMS PCO Seniority,PRC DELEGATED CO-COMMISSIONING,MATHEWS PRACTICE,20197328,"1,121.87"
Department of Health,NHS Sheffield CCG,31/12/2017,C&M-GMS Prem Notional Rent,PRC DELEGATED CO-COMMISSIONING,MATHEWS PRACTICE,20197328,"8,660.42"
Department of Health,NHS Sheffield CCG,31/12/2017,C&M-GMS Prem Rates,PRC DELEGATED CO-COMMISSIONING,MATHEWS PRACTICE,20197328,"1,757.00"
Department of Health,NHS Sheffield CCG,31/12/2017,C&M-GMS Prof Fees Prescribing,PRC DELEGATED CO-COMMISSIONING,MATHEWS PRACTICE,20197328,512.49
Department of Health,NHS Sheffield CCG,31/12/2017,C&M-GMS QOF Aspiration,PRC DELEGATED CO-COMMISSIONING,MATHEWS PRACTICE,20197328,"9,686.98"
Department of Health,NHS Sheffield CCG,31/12/2017,C&M-PMS Contract Value,PRC DELEGATED CO-COMMISSIONING,MEADOWHEAD GROUP PRACTICE,20019875,"75,691.91"
Department of Health,NHS Sheffield CCG,31/12/2017,C&M-PMS DES Learn Dsblty Hlth Chk,PRC DELEGATED CO-COMMISSIONING,MEADOWHEAD GROUP PRACTICE,20019875,140
Department of Health,NHS Sheffield CCG,31/12/2017,C&M-PMS Out of Hours Opt Outs,PRC DELEGATED CO-COMMISSIONING,MEADOWHEAD GROUP PRACTICE,20019875,15.35
Department of Health,NHS Sheffield CCG,31/12/2017,C&M-PMS PCO Locum Adop/Pat/Mat,PRC DELEGATED CO-COMMISSIONING,MEADOWHEAD GROUP PRACTICE,20019875,"11,392.28"
Department of Health,NHS Sheffield CCG,31/12/2017,C&M-PMS PCO Seniority,PRC DELEGATED CO-COMMISSIONING,MEADOWHEAD GROUP PRACTICE,20019875,"4,740.44"
Department of Health,NHS Sheffield CCG,31/12/2017,C&M-PMS Prem Cost Rent,PRC DELEGATED CO-COMMISSIONING,MEADOWHEAD GROUP PRACTICE,20019875,"3,647.42"
Department of Health,NHS Sheffield CCG,31/12/2017,C&M-PMS Prem Notional Rent,PRC DELEGATED CO-COMMISSIONING,MEADOWHEAD GROUP PRACTICE,20019875,"3,358.33"
Department of Health,NHS Sheffield CCG,31/12/2017,C&M-PMS Prem Rates,PRC DELEGATED CO-COMMISSIONING,MEADOWHEAD GROUP PRACTICE,20019875,"1,709.00"
Department of Health,NHS Sheffield CCG,31/12/2017,C&M-PMS QOF Aspiration,PRC DELEGATED CO-COMMISSIONING,MEADOWHEAD GROUP PRACTICE,20019875,"10,533.01"
Department of Health,NHS Sheffield CCG,31/12/2017,C&M-GMS Cost of Drugs -Prescribing,LOCAL ENHANCED SERVICES,MEDICAL CENTRE CRYSTAL PEAKS,20197324,"2,978.92"
Department of Health,NHS Sheffield CCG,31/12/2017,C&M-GMS DES Extended Hours Access,PRC DELEGATED CO-COMMISSIONING,MEDICAL CENTRE CRYSTAL PEAKS,20197324,"3,139.28"
Department of Health,NHS Sheffield CCG,31/12/2017,C&M-GMS Global Sum,PRC DELEGATED CO-COMMISSIONING,MEDICAL CENTRE CRYSTAL PEAKS,20197324,"43,638.17"
Department of Health,NHS Sheffield CCG,31/12/2017,C&M-GMS MPIG Correction Factor,PRC DELEGATED CO-COMMISSIONING,MEDICAL CENTRE CRYSTAL PEAKS,20197324,"1,697.01"
Department of Health,NHS Sheffield CCG,31/12/2017,C&M-GMS PCO Other,PRC DELEGATED CO-COMMISSIONING,MEDICAL CENTRE CRYSTAL PEAKS,20197324,452.6
Department of Health,NHS Sheffield CCG,31/12/2017,C&M-GMS PCO Seniority,PRC DELEGATED CO-COMMISSIONING,MEDICAL CENTRE CRYSTAL PEAKS,20197324,"2,553.84"
Department of Health,NHS Sheffield CCG,31/12/2017,C&M-GMS Prem Notional Rent,PRC DELEGATED CO-COMMISSIONING,MEDICAL CENTRE CRYSTAL PEAKS,20197324,270
Department of Health,NHS Sheffield CCG,31/12/2017,C&M-GMS Prem Rates,PRC DELEGATED CO-COMMISSIONING,MEDICAL CENTRE CRYSTAL PEAKS,20197324,"1,822.00"
Department of Health,NHS Sheffield CCG,31/12/2017,C&M-GMS Prem Water Rates,PRC DELEGATED CO-COMMISSIONING,MEDICAL CENTRE CRYSTAL PEAKS,20197324,205.07
Department of Health,NHS Sheffield CCG,31/12/2017,C&M-GMS Prof Fees Prescribing,PRC DELEGATED CO-COMMISSIONING,MEDICAL CENTRE CRYSTAL PEAKS,20197324,"1,007.30"
Department of Health,NHS Sheffield CCG,31/12/2017,C&M-GMS QOF Aspiration,PRC DELEGATED CO-COMMISSIONING,MEDICAL CENTRE CRYSTAL PEAKS,20197324,"6,023.36"
Department of Health,NHS Sheffield CCG,31/12/2017,C&M-GMS Cost of Drugs -Prescribing,LOCAL ENHANCED SERVICES,MILL ROAD SURGERY SHEFFIELD,20197332,"10,919.96"
Department of Health,NHS Sheffield CCG,31/12/2017,C&M-GMS DES Extended Hours Access,PRC DELEGATED CO-COMMISSIONING,MILL ROAD SURGERY SHEFFIELD,20197332,"2,489.00"
Department of Health,NHS Sheffield CCG,31/12/2017,C&M-GMS DES Learn Dsblty Hlth Chk,PRC DELEGATED CO-COMMISSIONING,MILL ROAD SURGERY SHEFFIELD,20197332,560
Department of Health,NHS Sheffield CCG,31/12/2017,C&M-GMS Global Sum,PRC DELEGATED CO-COMMISSIONING,MILL ROAD SURGERY SHEFFIELD,20197332,"38,250.35"
Department of Health,NHS Sheffield CCG,31/12/2017,C&M-GMS MPIG Correction Factor,PRC DELEGATED CO-COMMISSIONING,MILL ROAD SURGERY SHEFFIELD,20197332,183.06
Department of Health,NHS Sheffield CCG,31/12/2017,C&M-GMS PCO Other,PRC DELEGATED CO-COMMISSIONING,MILL ROAD SURGERY SHEFFIELD,20197332,452.6
Department of Health,NHS Sheffield CCG,31/12/2017,C&M-GMS PCO Seniority,PRC DELEGATED CO-COMMISSIONING,MILL ROAD SURGERY SHEFFIELD,20197332,"1,632.99"
Department of Health,NHS Sheffield CCG,31/12/2017,C&M-GMS Prem Notional Rent,PRC DELEGATED CO-COMMISSIONING,MILL ROAD SURGERY SHEFFIELD,20197332,"4,587.50"
Department of Health,NHS Sheffield CCG,31/12/2017,C&M-GMS Prem Rates,PRC DELEGATED CO-COMMISSIONING,MILL ROAD SURGERY SHEFFIELD,20197332,833
Department of Health,NHS Sheffield CCG,31/12/2017,C&M-GMS Prof Fees Prescribing,PRC DELEGATED CO-COMMISSIONING,MILL ROAD SURGERY SHEFFIELD,20197332,"2,591.83"
Department of Health,NHS Sheffield CCG,31/12/2017,C&M-GMS QOF Aspiration,PRC DELEGATED CO-COMMISSIONING,MILL ROAD SURGERY SHEFFIELD,20197332,"5,445.09"
Department of Health,NHS Sheffield CCG,31/12/2017,C&M-PMS Contract Value,PRC DELEGATED CO-COMMISSIONING,MOSBOROUGH HEALTH CENTRE,20019879,"45,903.40"
Department of Health,NHS Sheffield CCG,31/12/2017,C&M-PMS DES Learn Dsblty Hlth Chk,PRC DELEGATED CO-COMMISSIONING,MOSBOROUGH HEALTH CENTRE,20019879,700
Department of Health,NHS Sheffield CCG,31/12/2017,C&M-PMS Funding Differential Review,PRC DELEGATED CO-COMMISSIONING,MOSBOROUGH HEALTH CENTRE,20019879,"1,253.00"
Department of Health,NHS Sheffield CCG,31/12/2017,C&M-PMS Out of Hours Opt Outs,PRC DELEGATED CO-COMMISSIONING,MOSBOROUGH HEALTH CENTRE,20019879,19.85
Department of Health,NHS Sheffield CCG,31/12/2017,C&M-PMS PCO Other,PRC DELEGATED CO-COMMISSIONING,MOSBOROUGH HEALTH CENTRE,20019879,452.6
Department of Health,NHS Sheffield CCG,31/12/2017,C&M-PMS PCO Seniority,PRC DELEGATED CO-COMMISSIONING,MOSBOROUGH HEALTH CENTRE,20019879,"3,000.12"
Department of Health,NHS Sheffield CCG,31/12/2017,C&M-PMS Prem Notional Rent,PRC DELEGATED CO-COMMISSIONING,MOSBOROUGH HEALTH CENTRE,20019879,"4,091.67"
Department of Health,NHS Sheffield CCG,31/12/2017,C&M-PMS QOF Aspiration,PRC DELEGATED CO-COMMISSIONING,MOSBOROUGH HEALTH CENTRE,20019879,"6,017.44"
Department of Health,NHS Sheffield CCG,31/12/2017,C&M-PMS Contract Value,PRC DELEGATED CO-COMMISSIONING,NETHERGREEN SURGERY,20019881,"60,420.72"
Department of Health,NHS Sheffield CCG,31/12/2017,C&M-PMS Funding Differential Review,PRC DELEGATED CO-COMMISSIONING,NETHERGREEN SURGERY,20019881,"1,876.58"
Department of Health,NHS Sheffield CCG,31/12/2017,C&M-PMS PCO Seniority,PRC DELEGATED CO-COMMISSIONING,NETHERGREEN SURGERY,20019881,"4,589.34"
Department of Health,NHS Sheffield CCG,31/12/2017,C&M-PMS Prem Cost Rent,PRC DELEGATED CO-COMMISSIONING,NETHERGREEN SURGERY,20019881,"5,057.33"
Department of Health,NHS Sheffield CCG,31/12/2017,C&M-PMS Prem Rates,PRC DELEGATED CO-COMMISSIONING,NETHERGREEN SURGERY,20019881,"1,200.00"
Department of Health,NHS Sheffield CCG,31/12/2017,C&M-PMS Prem Water Rates,PRC DELEGATED CO-COMMISSIONING,NETHERGREEN SURGERY,20019881,481.06
Department of Health,NHS Sheffield CCG,31/12/2017,C&M-PMS QOF Aspiration,PRC DELEGATED CO-COMMISSIONING,NETHERGREEN SURGERY,20019881,"6,339.79"
Department of Health,NHS Sheffield CCG,31/12/2017,Cont Care-Physical Disab (<65),CHC ADULT FULLY FUNDED,NEVILLE HEALTH CARE LTD,19989980,"33,060.53"
Department of Health,NHS Sheffield CCG,31/12/2017,C&M-GMS Cost of Drugs -Prescribing,LOCAL ENHANCED SERVICES,NORFOLK PARK HEALTH CENTRE,20197337,"3,367.52"
Department of Health,NHS Sheffield CCG,31/12/2017,C&M-GMS DES Learn Dsblty Hlth Chk,PRC DELEGATED CO-COMMISSIONING,NORFOLK PARK HEALTH CENTRE,20197337,700
Department of Health,NHS Sheffield CCG,31/12/2017,C&M-GMS Global Sum,PRC DELEGATED CO-COMMISSIONING,NORFOLK PARK HEALTH CENTRE,20197337,"34,086.64"
Department of Health,NHS Sheffield CCG,31/12/2017,C&M-GMS MPIG Correction Factor,PRC DELEGATED CO-COMMISSIONING,NORFOLK PARK HEALTH CENTRE,20197337,"1,386.91"
Department of Health,NHS Sheffield CCG,31/12/2017,C&M-GMS PCO Seniority,PRC DELEGATED CO-COMMISSIONING,NORFOLK PARK HEALTH CENTRE,20197337,"3,190.83"
Department of Health,NHS Sheffield CCG,31/12/2017,C&M-GMS Prem Healthcentre Rent,PRC DELEGATED CO-COMMISSIONING,NORFOLK PARK HEALTH CENTRE,20197337,"23,010.32"
Department of Health,NHS Sheffield CCG,31/12/2017,C&M-GMS Prof Fees Prescribing,PRC DELEGATED CO-COMMISSIONING,NORFOLK PARK HEALTH CENTRE,20197337,929.99
Department of Health,NHS Sheffield CCG,31/12/2017,C&M-GMS QOF Aspiration,PRC DELEGATED CO-COMMISSIONING,NORFOLK PARK HEALTH CENTRE,20197337,"4,068.39"
Department of Health,NHS Sheffield CCG,31/12/2017,C&M-GMS Cost of Drugs -Prescribing,LOCAL ENHANCED SERVICES,NORWOOD MEDICAL CENTRE SHEFFIELD,20197340,174.8
Department of Health,NHS Sheffield CCG,31/12/2017,C&M-GMS DES Extended Hours Access,PRC DELEGATED CO-COMMISSIONING,NORWOOD MEDICAL CENTRE SHEFFIELD,20197340,"3,752.03"
Department of Health,NHS Sheffield CCG,31/12/2017,C&M-GMS DES Learn Dsblty Hlth Chk,PRC DELEGATED CO-COMMISSIONING,NORWOOD MEDICAL CENTRE SHEFFIELD,20197340,"1,120.00"
Department of Health,NHS Sheffield CCG,31/12/2017,C&M-GMS Global Sum,PRC DELEGATED CO-COMMISSIONING,NORWOOD MEDICAL CENTRE SHEFFIELD,20197340,"61,011.90"
Department of Health,NHS Sheffield CCG,31/12/2017,C&M-GMS PCO Other,PRC DELEGATED CO-COMMISSIONING,NORWOOD MEDICAL CENTRE SHEFFIELD,20197340,452.6
Department of Health,NHS Sheffield CCG,31/12/2017,C&M-GMS PCO Seniority,PRC DELEGATED CO-COMMISSIONING,NORWOOD MEDICAL CENTRE SHEFFIELD,20197340,"3,469.61"
Department of Health,NHS Sheffield CCG,31/12/2017,C&M-GMS Prem Notional Rent,PRC DELEGATED CO-COMMISSIONING,NORWOOD MEDICAL CENTRE SHEFFIELD,20197340,"5,187.50"
Department of Health,NHS Sheffield CCG,31/12/2017,C&M-GMS Prof Fees Prescribing,PRC DELEGATED CO-COMMISSIONING,NORWOOD MEDICAL CENTRE SHEFFIELD,20197340,77.32
Department of Health,NHS Sheffield CCG,31/12/2017,C&M-GMS QOF Aspiration,PRC DELEGATED CO-COMMISSIONING,NORWOOD MEDICAL CENTRE SHEFFIELD,20197340,"8,411.55"
Department of Health,NHS Sheffield CCG,31/12/2017,Clinical&Medical-Independent Sector,ACUTE COMMISSIONING,ONEHEALTH GROUP,20028936,"90,000.00"
Department of Health,NHS Sheffield CCG,31/12/2017,C&M-GMS Cost of Drugs -Dispensing,LOCAL ENHANCED SERVICES,OUGHTIBRIDGE SURGERY,20197344,"-21,344.82"
Department of Health,NHS Sheffield CCG,31/12/2017,C&M-GMS GP Statutory Levy,PRC DELEGATED CO-COMMISSIONING,OUGHTIBRIDGE SURGERY,20197344,-175.17
Department of Health,NHS Sheffield CCG,31/12/2017,C&M-GMS PrscChrgsCll&RmttdbyGPCntra,PRC DELEGATED CO-COMMISSIONING,OUGHTIBRIDGE SURGERY,20197344,-722.4
Department of Health,NHS Sheffield CCG,31/12/2017,C&M-GMS QOF Aspiration,PRC DELEGATED CO-COMMISSIONING,OUGHTIBRIDGE SURGERY,20197344,-392.91
Department of Health,NHS Sheffield CCG,31/12/2017,C&M-GMS Voluntary Levy,PRC DELEGATED CO-COMMISSIONING,OUGHTIBRIDGE SURGERY,20197344,-29.2
Department of Health,NHS Sheffield CCG,31/12/2017,C&M-GMS Cost of Drugs -Dispensing,LOCAL ENHANCED SERVICES,OUGHTIBRIDGE SURGERY,20197345,"36,271.37"
Department of Health,NHS Sheffield CCG,31/12/2017,C&M-GMS Global Sum,PRC DELEGATED CO-COMMISSIONING,OUGHTIBRIDGE SURGERY,20197345,"41,333.34"
Department of Health,NHS Sheffield CCG,31/12/2017,C&M-GMS PCO Seniority,PRC DELEGATED CO-COMMISSIONING,OUGHTIBRIDGE SURGERY,20197345,"3,198.43"
Department of Health,NHS Sheffield CCG,31/12/2017,C&M-GMS Prem Notional Rent,PRC DELEGATED CO-COMMISSIONING,OUGHTIBRIDGE SURGERY,20197345,"3,957.33"
Department of Health,NHS Sheffield CCG,31/12/2017,C&M-GMS Prof Fees Dispensing,PRC DELEGATED CO-COMMISSIONING,OUGHTIBRIDGE SURGERY,20197345,"5,877.33"
Department of Health,NHS Sheffield CCG,31/12/2017,C&M-GMS PrscrptnChrgsColl&RmttdbyGP,LOCAL ENHANCED SERVICES,OUGHTIBRIDGE SURGERY,20197345,722.4
Department of Health,NHS Sheffield CCG,31/12/2017,C&M-GMS QOF Aspiration,PRC DELEGATED CO-COMMISSIONING,OUGHTIBRIDGE SURGERY,20197345,"4,693.88"
Department of Health,NHS Sheffield CCG,31/12/2017,C&M-PMS Contract Value,PRC DELEGATED CO-COMMISSIONING,OWLTHORPE MEDICAL CENTRE,20019883,"36,000.73"
Department of Health,NHS Sheffield CCG,31/12/2017,C&M-PMS Funding Differential Review,PRC DELEGATED CO-COMMISSIONING,OWLTHORPE MEDICAL CENTRE,20019883,"1,499.67"
Department of Health,NHS Sheffield CCG,31/12/2017,C&M-PMS Out of Hours Opt Outs,PRC DELEGATED CO-COMMISSIONING,OWLTHORPE MEDICAL CENTRE,20019883,119.52
Department of Health,NHS Sheffield CCG,31/12/2017,C&M-PMS PCO Other,PRC DELEGATED CO-COMMISSIONING,OWLTHORPE MEDICAL CENTRE,20019883,384.5
Department of Health,NHS Sheffield CCG,31/12/2017,C&M-PMS PCO Seniority,PRC DELEGATED CO-COMMISSIONING,OWLTHORPE MEDICAL CENTRE,20019883,862.31
Department of Health,NHS Sheffield CCG,31/12/2017,C&M-PMS Prem Actual Rent,PRC DELEGATED CO-COMMISSIONING,OWLTHORPE MEDICAL CENTRE,20019883,"7,539.58"
Department of Health,NHS Sheffield CCG,31/12/2017,C&M-PMS QOF Aspiration,PRC DELEGATED CO-COMMISSIONING,OWLTHORPE MEDICAL CENTRE,20019883,"4,031.40"
Department of Health,NHS Sheffield CCG,31/12/2017,C&M-PMS Contract Value,PRC DELEGATED CO-COMMISSIONING,PAGE HALL MEDICAL CENTRE,20019885,"53,969.79"
Department of Health,NHS Sheffield CCG,31/12/2017,C&M-PMS DES Learn Dsblty Hlth Chk,PRC DELEGATED CO-COMMISSIONING,PAGE HALL MEDICAL CENTRE,20019885,"1,260.00"
Department of Health,NHS Sheffield CCG,31/12/2017,C&M-PMS Funding Differential Review,PRC DELEGATED CO-COMMISSIONING,PAGE HALL MEDICAL CENTRE,20019885,"5,391.08"
Department of Health,NHS Sheffield CCG,31/12/2017,C&M-PMS Out of Hours Opt Outs,PRC DELEGATED CO-COMMISSIONING,PAGE HALL MEDICAL CENTRE,20019885,7.91
Department of Health,NHS Sheffield CCG,31/12/2017,C&M-PMS PCO Seniority,PRC DELEGATED CO-COMMISSIONING,PAGE HALL MEDICAL CENTRE,20019885,"2,732.69"
Department of Health,NHS Sheffield CCG,31/12/2017,C&M-PMS Prem Actual Rent,PRC DELEGATED CO-COMMISSIONING,PAGE HALL MEDICAL CENTRE,20019885,135
Department of Health,NHS Sheffield CCG,31/12/2017,C&M-PMS Prem Notional Rent,PRC DELEGATED CO-COMMISSIONING,PAGE HALL MEDICAL CENTRE,20019885,"4,833.33"
Department of Health,NHS Sheffield CCG,31/12/2017,C&M-PMS Prem Rates,PRC DELEGATED CO-COMMISSIONING,PAGE HALL MEDICAL CENTRE,20019885,875
Department of Health,NHS Sheffield CCG,31/12/2017,C&M-PMS Prem Water Rates,PRC DELEGATED CO-COMMISSIONING,PAGE HALL MEDICAL CENTRE,20019885,177.96
Department of Health,NHS Sheffield CCG,31/12/2017,C&M-PMS QOF Aspiration,PRC DELEGATED CO-COMMISSIONING,PAGE HALL MEDICAL CENTRE,20019885,"5,102.24"
Department of Health,NHS Sheffield CCG,31/12/2017,C&M-PMS Contract Value,PRC DELEGATED CO-COMMISSIONING,PARK HEALTH CENTRE,20019887,"40,085.43"
Department of Health,NHS Sheffield CCG,31/12/2017,C&M-PMS Funding Differential Review,PRC DELEGATED CO-COMMISSIONING,PARK HEALTH CENTRE,20019887,"3,290.17"
Department of Health,NHS Sheffield CCG,31/12/2017,C&M-PMS Out of Hours Opt Outs,PRC DELEGATED CO-COMMISSIONING,PARK HEALTH CENTRE,20019887,83.19
Department of Health,NHS Sheffield CCG,31/12/2017,C&M-PMS PCO Locum Adop/Pat/Mat,PRC DELEGATED CO-COMMISSIONING,PARK HEALTH CENTRE,20019887,"13,412.79"
Department of Health,NHS Sheffield CCG,31/12/2017,C&M-PMS PCO Other,PRC DELEGATED CO-COMMISSIONING,PARK HEALTH CENTRE,20019887,452.6
Department of Health,NHS Sheffield CCG,31/12/2017,C&M-PMS PCO Seniority,PRC DELEGATED CO-COMMISSIONING,PARK HEALTH CENTRE,20019887,"2,812.43"
Department of Health,NHS Sheffield CCG,31/12/2017,C&M-PMS Prem Notional Rent,PRC DELEGATED CO-COMMISSIONING,PARK HEALTH CENTRE,20019887,"6,000.00"
Department of Health,NHS Sheffield CCG,31/12/2017,C&M-PMS Prem Water Rates,PRC DELEGATED CO-COMMISSIONING,PARK HEALTH CENTRE,20019887,518.9
Department of Health,NHS Sheffield CCG,31/12/2017,C&M-PMS QOF Aspiration,PRC DELEGATED CO-COMMISSIONING,PARK HEALTH CENTRE,20019887,"4,293.17"
Department of Health,NHS Sheffield CCG,31/12/2017,C&M-PMS Contract Value,PRC DELEGATED CO-COMMISSIONING,PITSMOOR SURGERY,20019889,"76,031.60"
Department of Health,NHS Sheffield CCG,31/12/2017,C&M-PMS Cost of Drugs -Prescribing,LOCAL ENHANCED SERVICES,PITSMOOR SURGERY,20019889,33.21
Department of Health,NHS Sheffield CCG,31/12/2017,C&M-PMS DES Learn Dsblty Hlth Chk,PRC DELEGATED CO-COMMISSIONING,PITSMOOR SURGERY,20019889,"1,820.00"
Department of Health,NHS Sheffield CCG,31/12/2017,C&M-PMS Out of Hours Opt Outs,PRC DELEGATED CO-COMMISSIONING,PITSMOOR SURGERY,20019889,66.72
Department of Health,NHS Sheffield CCG,31/12/2017,C&M-PMS PCO Locum Adop/Pat/Mat,PRC DELEGATED CO-COMMISSIONING,PITSMOOR SURGERY,20019889,"24,278.52"
Department of Health,NHS Sheffield CCG,31/12/2017,C&M-PMS PCO Seniority,PRC DELEGATED CO-COMMISSIONING,PITSMOOR SURGERY,20019889,"3,075.58"
Department of Health,NHS Sheffield CCG,31/12/2017,C&M-PMS Prem Notional Rent,PRC DELEGATED CO-COMMISSIONING,PITSMOOR SURGERY,20019889,"9,650.00"
Department of Health,NHS Sheffield CCG,31/12/2017,C&M-PMS Prof fees Prescribing,PRC DELEGATED CO-COMMISSIONING,PITSMOOR SURGERY,20019889,7.71
Department of Health,NHS Sheffield CCG,31/12/2017,C&M-PMS QOF Aspiration,PRC DELEGATED CO-COMMISSIONING,PITSMOOR SURGERY,20019889,"7,463.31"
Department of Health,NHS Sheffield CCG,31/12/2017,Hcare Srv Rec NHS Trust-Non Contract,NCAS/OATS,PLYMOUTH HOSPITALS NHS TRUST,20251486,"25,539.17"
Department of Health,NHS Sheffield CCG,31/12/2017,C&M-PMS Contract Value,PRC DELEGATED CO-COMMISSIONING,PORTER BROOK MEDICAL CENTRE,20019890,"-7,057.03"
Department of Health,NHS Sheffield CCG,31/12/2017,C&M-PMS GP Statutory Levy,PRC DELEGATED CO-COMMISSIONING,PORTER BROOK MEDICAL CENTRE,20019890,-886.26
Department of Health,NHS Sheffield CCG,31/12/2017,C&M-PMS Out of Hours Opt Outs,PRC DELEGATED CO-COMMISSIONING,PORTER BROOK MEDICAL CENTRE,20019890,"-7,926.46"
Department of Health,NHS Sheffield CCG,31/12/2017,C&M-PMS Voluntary Levy,PRC DELEGATED CO-COMMISSIONING,PORTER BROOK MEDICAL CENTRE,20019890,-147.71
Department of Health,NHS Sheffield CCG,31/12/2017,C&M-PMS Contract Value,PRC DELEGATED CO-COMMISSIONING,PORTER BROOK MEDICAL CENTRE,20019891,"167,759.15"
Department of Health,NHS Sheffield CCG,31/12/2017,C&M-PMS Funding Differential Review,PRC DELEGATED CO-COMMISSIONING,PORTER BROOK MEDICAL CENTRE,20019891,"5,112.08"
Department of Health,NHS Sheffield CCG,31/12/2017,C&M-PMS Out of Hours Opt Outs,PRC DELEGATED CO-COMMISSIONING,PORTER BROOK MEDICAL CENTRE,20019891,352.08
Department of Health,NHS Sheffield CCG,31/12/2017,C&M-PMS PCO Other,PRC DELEGATED CO-COMMISSIONING,PORTER BROOK MEDICAL CENTRE,20019891,591.8
Department of Health,NHS Sheffield CCG,31/12/2017,C&M-PMS PCO Seniority,PRC DELEGATED CO-COMMISSIONING,PORTER BROOK MEDICAL CENTRE,20019891,"8,679.62"
Department of Health,NHS Sheffield CCG,31/12/2017,C&M-PMS Prem Actual Rent,PRC DELEGATED CO-COMMISSIONING,PORTER BROOK MEDICAL CENTRE,20019891,"1,333.33"
Department of Health,NHS Sheffield CCG,31/12/2017,C&M-PMS Prem Notional Rent,PRC DELEGATED CO-COMMISSIONING,PORTER BROOK MEDICAL CENTRE,20019891,"10,132.99"
Department of Health,NHS Sheffield CCG,31/12/2017,C&M-PMS Prem Rates,PRC DELEGATED CO-COMMISSIONING,PORTER BROOK MEDICAL CENTRE,20019891,"1,956.00"
Department of Health,NHS Sheffield CCG,31/12/2017,C&M-PMS QOF Aspiration,PRC DELEGATED CO-COMMISSIONING,PORTER BROOK MEDICAL CENTRE,20019891,"8,899.04"
Department of Health,NHS Sheffield CCG,31/12/2017,C&M-APMS DES Extended Hours Access,GP FORWARD VIEW,PRIMARY CARE SHEFFIELD LTD,20098585,"289,935.17"
Department of Health,NHS Sheffield CCG,31/12/2017,C&M-OES Childrens Schemes,LOCAL ENHANCED SERVICES,PRIMARY EYECARE (SHEFFIELD) LTD,20028932,"1,825.00"
Department of Health,NHS Sheffield CCG,31/12/2017,C&M-OES Glaucoma,LOCAL ENHANCED SERVICES,PRIMARY EYECARE (SHEFFIELD) LTD,20028932,770
Department of Health,NHS Sheffield CCG,31/12/2017,C&M-OES Intra-ocular Ocular Hypertn,LOCAL ENHANCED SERVICES,PRIMARY EYECARE (SHEFFIELD) LTD,20028932,540
Department of Health,NHS Sheffield CCG,31/12/2017,C&M-OES PEARS,LOCAL ENHANCED SERVICES,PRIMARY EYECARE (SHEFFIELD) LTD,20028932,"28,161.00"
Department of Health,NHS Sheffield CCG,31/12/2017,C&M-PMS Contract Value,PRC DELEGATED CO-COMMISSIONING,RICHMOND MEDICAL CENTRE,20043773,"62,536.08"
Department of Health,NHS Sheffield CCG,31/12/2017,C&M-PMS DES Learn Dsblty Hlth Chk,PRC DELEGATED CO-COMMISSIONING,RICHMOND MEDICAL CENTRE,20043773,"2,380.00"
Department of Health,NHS Sheffield CCG,31/12/2017,C&M-PMS Funding Differential Review,PRC DELEGATED CO-COMMISSIONING,RICHMOND MEDICAL CENTRE,20043773,"1,802.33"
Department of Health,NHS Sheffield CCG,31/12/2017,C&M-PMS PCO Locum Adop/Pat/Mat,PRC DELEGATED CO-COMMISSIONING,RICHMOND MEDICAL CENTRE,20043773,"14,941.00"
Department of Health,NHS Sheffield CCG,31/12/2017,C&M-PMS PCO Other,PRC DELEGATED CO-COMMISSIONING,RICHMOND MEDICAL CENTRE,20043773,452.6
Department of Health,NHS Sheffield CCG,31/12/2017,C&M-PMS PCO Seniority,PRC DELEGATED CO-COMMISSIONING,RICHMOND MEDICAL CENTRE,20043773,"2,295.18"
Department of Health,NHS Sheffield CCG,31/12/2017,C&M-PMS Prem Notional Rent,PRC DELEGATED CO-COMMISSIONING,RICHMOND MEDICAL CENTRE,20043773,"4,700.00"
Department of Health,NHS Sheffield CCG,31/12/2017,C&M-PMS Prem Rates,PRC DELEGATED CO-COMMISSIONING,RICHMOND MEDICAL CENTRE,20043773,"1,139.00"
Department of Health,NHS Sheffield CCG,31/12/2017,C&M-PMS QOF Aspiration,PRC DELEGATED CO-COMMISSIONING,RICHMOND MEDICAL CENTRE,20043773,"7,754.77"
Department of Health,NHS Sheffield CCG,31/12/2017,Cont Care-Funded Nursing Care Allow,FUNDED NURSING CARE,ROSEBERRY CARE CENTRES,19990067,"36,487.70"
Department of Health,NHS Sheffield CCG,31/12/2017,Cont Care-Physical Disab (<65),CHC ADULT FULLY FUNDED,ROSEBERRY CARE CENTRES,20028879,"55,160.29"
Department of Health,NHS Sheffield CCG,31/12/2017,Hcare Srv Rec Fdtn Trust-Contract Baseline,ACUTE COMMISSIONING,ROTHERHAM NHS FOUNDATION TRUST,19943301,"429,401.00"
Department of Health,NHS Sheffield CCG,31/12/2017,C&M-PMS Contract Value,PRC DELEGATED CO-COMMISSIONING,RUSTLINGS ROAD MEDICAL CENTRE,20019896,"26,762.24"
Department of Health,NHS Sheffield CCG,31/12/2017,C&M-PMS Funding Differential Review,PRC DELEGATED CO-COMMISSIONING,RUSTLINGS ROAD MEDICAL CENTRE,20019896,"1,235.92"
Department of Health,NHS Sheffield CCG,31/12/2017,C&M-PMS Out of Hours Opt Outs,PRC DELEGATED CO-COMMISSIONING,RUSTLINGS ROAD MEDICAL CENTRE,20019896,14.54
Department of Health,NHS Sheffield CCG,31/12/2017,C&M-PMS PCO Other,PRC DELEGATED CO-COMMISSIONING,RUSTLINGS ROAD MEDICAL CENTRE,20019896,384.5
Department of Health,NHS Sheffield CCG,31/12/2017,C&M-PMS PCO Seniority,PRC DELEGATED CO-COMMISSIONING,RUSTLINGS ROAD MEDICAL CENTRE,20019896,"2,081.74"
Department of Health,NHS Sheffield CCG,31/12/2017,C&M-PMS Prem Notional Rent,PRC DELEGATED CO-COMMISSIONING,RUSTLINGS ROAD MEDICAL CENTRE,20019896,"1,167.92"
Department of Health,NHS Sheffield CCG,31/12/2017,C&M-PMS Prem Water Rates,PRC DELEGATED CO-COMMISSIONING,RUSTLINGS ROAD MEDICAL CENTRE,20019896,67.49
Department of Health,NHS Sheffield CCG,31/12/2017,C&M-PMS QOF Aspiration,PRC DELEGATED CO-COMMISSIONING,RUSTLINGS ROAD MEDICAL CENTRE,20019896,"2,481.56"
Department of Health,NHS Sheffield CCG,31/12/2017,C&M-PMS Contract Value,PRC DELEGATED CO-COMMISSIONING,SELBORNE ROAD MEDICAL CENTRE,20019894,"19,024.26"
Department of Health,NHS Sheffield CCG,31/12/2017,C&M-PMS DES Learn Dsblty Hlth Chk,PRC DELEGATED CO-COMMISSIONING,SELBORNE ROAD MEDICAL CENTRE,20019894,"1,260.00"
Department of Health,NHS Sheffield CCG,31/12/2017,C&M-PMS Funding Differential Review,PRC DELEGATED CO-COMMISSIONING,SELBORNE ROAD MEDICAL CENTRE,20019894,631.58
Department of Health,NHS Sheffield CCG,31/12/2017,C&M-PMS Out of Hours Opt Outs,PRC DELEGATED CO-COMMISSIONING,SELBORNE ROAD MEDICAL CENTRE,20019894,5.48
Department of Health,NHS Sheffield CCG,31/12/2017,C&M-PMS PCO Other,PRC DELEGATED CO-COMMISSIONING,SELBORNE ROAD MEDICAL CENTRE,20019894,384.5
Department of Health,NHS Sheffield CCG,31/12/2017,C&M-PMS Prem Notional Rent,PRC DELEGATED CO-COMMISSIONING,SELBORNE ROAD MEDICAL CENTRE,20019894,"1,735.41"
Department of Health,NHS Sheffield CCG,31/12/2017,C&M-PMS Prem Rates,PRC DELEGATED CO-COMMISSIONING,SELBORNE ROAD MEDICAL CENTRE,20019894,515
Department of Health,NHS Sheffield CCG,31/12/2017,C&M-PMS QOF Aspiration,PRC DELEGATED CO-COMMISSIONING,SELBORNE ROAD MEDICAL CENTRE,20019894,"2,351.67"
Department of Health,NHS Sheffield CCG,31/12/2017,Cont Care-Physical Disab (<65),CHC ADULT FULLY FUNDED,SEVEN HILLS NURSING HOME,19990060,"37,562.80"
Department of Health,NHS Sheffield CCG,31/12/2017,C&M-GMS Cost of Drugs -Prescribing,LOCAL ENHANCED SERVICES,SHARROW LANE MEDICAL CENTRE,20197350,"4,237.03"
Department of Health,NHS Sheffield CCG,31/12/2017,C&M-GMS DES Extended Hours Access,PRC DELEGATED CO-COMMISSIONING,SHARROW LANE MEDICAL CENTRE,20197350,"1,822.58"
Department of Health,NHS Sheffield CCG,31/12/2017,C&M-GMS Global Sum,PRC DELEGATED CO-COMMISSIONING,SHARROW LANE MEDICAL CENTRE,20197350,"21,889.98"
Department of Health,NHS Sheffield CCG,31/12/2017,C&M-GMS MPIG Correction Factor,PRC DELEGATED CO-COMMISSIONING,SHARROW LANE MEDICAL CENTRE,20197350,"2,940.48"
Department of Health,NHS Sheffield CCG,31/12/2017,C&M-GMS PCO Other,PRC DELEGATED CO-COMMISSIONING,SHARROW LANE MEDICAL CENTRE,20197350,384.5
Department of Health,NHS Sheffield CCG,31/12/2017,C&M-GMS PCO Seniority,PRC DELEGATED CO-COMMISSIONING,SHARROW LANE MEDICAL CENTRE,20197350,255.3
Department of Health,NHS Sheffield CCG,31/12/2017,C&M-GMS Prem Notional Rent,PRC DELEGATED CO-COMMISSIONING,SHARROW LANE MEDICAL CENTRE,20197350,"2,658.33"
Department of Health,NHS Sheffield CCG,31/12/2017,C&M-GMS Prem Rates,PRC DELEGATED CO-COMMISSIONING,SHARROW LANE MEDICAL CENTRE,20197350,467
Department of Health,NHS Sheffield CCG,31/12/2017,C&M-GMS Prof Fees Prescribing,PRC DELEGATED CO-COMMISSIONING,SHARROW LANE MEDICAL CENTRE,20197350,978.59
Department of Health,NHS Sheffield CCG,31/12/2017,C&M-GMS QOF Aspiration,PRC DELEGATED CO-COMMISSIONING,SHARROW LANE MEDICAL CENTRE,20197350,"2,727.76"
Department of Health,NHS Sheffield CCG,31/12/2017,Hcare Srv Rec Fdtn Trust-CQUIN,ACUTE CHILDRENS SERVICES,SHEFFIELD CHILDRENS NHS FOUNDATION TRUST,19956128,"32,706.00"
Department of Health,NHS Sheffield CCG,31/12/2017,Hcare Srv Rec Fdtn Trust-CQUIN,COMMUNITY SERVICES,SHEFFIELD CHILDRENS NHS FOUNDATION TRUST,19956128,"3,728.00"
Department of Health,NHS Sheffield CCG,31/12/2017,Hcare Srv Rec Fdtn Trust-Contract Baseline,ACUTE CHILDRENS SERVICES,SHEFFIELD CHILDRENS NHS FOUNDATION TRUST,19956128,"235,977.00"
Department of Health,NHS Sheffield CCG,31/12/2017,Hcare Srv Rec Fdtn Trust-Contract Baseline,CHILD AND ADOLESCENT MENTAL HEALTH,SHEFFIELD CHILDRENS NHS FOUNDATION TRUST,19956128,"367,086.00"
Department of Health,NHS Sheffield CCG,31/12/2017,Hcare Srv Rec Fdtn Trust-Contract Baseline,COMMUNITY SERVICES,SHEFFIELD CHILDRENS NHS FOUNDATION TRUST,19956128,"298,241.00"
Department of Health,NHS Sheffield CCG,31/12/2017,Hcare Srv Rec Fdtn Trust-Contract Baseline,HIGH COST DRUGS,SHEFFIELD CHILDRENS NHS FOUNDATION TRUST,19956128,"40,649.00"
Department of Health,NHS Sheffield CCG,31/12/2017,Hcare Srv Rec Fdtn Trust-Contract Baseline,MENTAL HEALTH CONTRACTS,SHEFFIELD CHILDRENS NHS FOUNDATION TRUST,19956128,"5,277.00"
Department of Health,NHS Sheffield CCG,31/12/2017,Hcare Srv Rec Fdtn Trust-Contract Baseline,PLANNED CARE,SHEFFIELD CHILDRENS NHS FOUNDATION TRUST,19956128,"965,735.00"
Department of Health,NHS Sheffield CCG,31/12/2017,Hcare Srv Rec Fdtn Trust-Contract Baseline,SAFEGUARDING,SHEFFIELD CHILDRENS NHS FOUNDATION TRUST,19956128,"29,800.00"
Department of Health,NHS Sheffield CCG,31/12/2017,Hcare Srv Rec Fdtn Trust-Contract Baseline,URGENT CARE,SHEFFIELD CHILDRENS NHS FOUNDATION TRUST,19956128,"988,358.00"
Department of Health,NHS Sheffield CCG,31/12/2017,Hcare Srv Rec Fdtn Trust-CQUIN,ACUTE CHILDRENS SERVICES,SHEFFIELD CHILDRENS NHS FOUNDATION TRUST,19973034,"37,937.00"
Department of Health,NHS Sheffield CCG,31/12/2017,Hcare Srv Rec Fdtn Trust-CQUIN,COMMUNITY SERVICES,SHEFFIELD CHILDRENS NHS FOUNDATION TRUST,19973034,"3,728.00"
Department of Health,NHS Sheffield CCG,31/12/2017,Hcare Srv Rec Fdtn Trust-Contract Baseline,ACUTE CHILDRENS SERVICES,SHEFFIELD CHILDRENS NHS FOUNDATION TRUST,19973034,"26,873.78"
Department of Health,NHS Sheffield CCG,31/12/2017,Hcare Srv Rec Fdtn Trust-Contract Baseline,HIGH COST DRUGS,SHEFFIELD CHILDRENS NHS FOUNDATION TRUST,19973034,"21,541.00"
Department of Health,NHS Sheffield CCG,31/12/2017,Hcare Srv Rec Fdtn Trust-Contract Baseline,MENTAL HEALTH CONTRACTS,SHEFFIELD CHILDRENS NHS FOUNDATION TRUST,19973034,-377
Department of Health,NHS Sheffield CCG,31/12/2017,Hcare Srv Rec Fdtn Trust-Contract Baseline,PLANNED CARE,SHEFFIELD CHILDRENS NHS FOUNDATION TRUST,19973034,"37,665.00"
Department of Health,NHS Sheffield CCG,31/12/2017,Hcare Srv Rec Fdtn Trust-Contract Baseline,URGENT CARE,SHEFFIELD CHILDRENS NHS FOUNDATION TRUST,19973034,"136,967.00"
Department of Health,NHS Sheffield CCG,31/12/2017,Cont Care-Physical Disab (65+),CHC ADULT FULLY FUNDED,SHEFFIELD CITY COUNCIL,20181000,"755,106.81"
Department of Health,NHS Sheffield CCG,31/12/2017,Cont Care- Prior Year Payments,CHC ADULT FULLY FUNDED,SHEFFIELD CITY COUNCIL,20181009,"46,317.47"
Department of Health,NHS Sheffield CCG,31/12/2017,Cont Care- Children,CHC CHILDREN,SHEFFIELD CITY COUNCIL,20271083,"51,240.75"
Department of Health,NHS Sheffield CCG,31/12/2017,Cont Care-NHSFT-Prior Year Payments,CHC ADULT FULLY FUNDED,SHEFFIELD HEALTH & SOCIAL CARE NHS FOUNDATION TRUST,19911727,"27,015.62"
Department of Health,NHS Sheffield CCG,31/12/2017,Clinical&Medical-Serv Recd-F Trsts,Learning Difficulties - S117,SHEFFIELD HEALTH & SOCIAL CARE NHS FOUNDATION TRUST,19934101,"4,215.64"
Department of Health,NHS Sheffield CCG,31/12/2017,Cont Care-NHSFT-Adult LD (<65),ADULT JOINT FUNDED CONTINUING CARE,SHEFFIELD HEALTH & SOCIAL CARE NHS FOUNDATION TRUST,19934101,"9,393.92"
Department of Health,NHS Sheffield CCG,31/12/2017,Cont Care-NHSFT-Adult LD (<65),CHC ADULT FULLY FUNDED,SHEFFIELD HEALTH & SOCIAL CARE NHS FOUNDATION TRUST,19934101,"36,175.92"
Department of Health,NHS Sheffield CCG,31/12/2017,Hcare Srv Rec Fdtn Trust-Contract Baseline,MENTAL HEALTH CONTRACTS,SHEFFIELD HEALTH & SOCIAL CARE NHS FOUNDATION TRUST,19936409,"1,804,027.00"
Department of Health,NHS Sheffield CCG,31/12/2017,Hcare Srv Rec Fdtn Trust-Contract Baseline,MENTAL HEALTH CONTRACTS,SHEFFIELD HEALTH & SOCIAL CARE NHS FOUNDATION TRUST,19936410,"6,013,427.33"
Department of Health,NHS Sheffield CCG,31/12/2017,Hcare Srv Rec Fdtn Trust-Contract Baseline,MENTAL HEALTH CONTRACTS,SHEFFIELD HEALTH & SOCIAL CARE NHS FOUNDATION TRUST,19936411,"-360,805.40"
Department of Health,NHS Sheffield CCG,31/12/2017,Hcare Srv Rec Fdtn Trust-Contract Baseline,MENTAL HEALTH CONTRACTS,SHEFFIELD HEALTH & SOCIAL CARE NHS FOUNDATION TRUST,19943285,"43,493.80"
Department of Health,NHS Sheffield CCG,31/12/2017,C&M-APMS Contract Value,PRC DELEGATED CO-COMMISSIONING,SHEFFIELD HEALTH & SOCIAL CARE NHS FOUNDATION TRUST,20021340,"119,696.37"
Department of Health,NHS Sheffield CCG,31/12/2017,C&M-APMS OOH Opt Outs,PRC DELEGATED CO-COMMISSIONING,SHEFFIELD HEALTH & SOCIAL CARE NHS FOUNDATION TRUST,20021340,27.65
Department of Health,NHS Sheffield CCG,31/12/2017,C&M-APMS Prem Actual Rent,PRC DELEGATED CO-COMMISSIONING,SHEFFIELD HEALTH & SOCIAL CARE NHS FOUNDATION TRUST,20021340,"5,169.68"
Department of Health,NHS Sheffield CCG,31/12/2017,C&M-APMS Prem Healthcentre Rent,PRC DELEGATED CO-COMMISSIONING,SHEFFIELD HEALTH & SOCIAL CARE NHS FOUNDATION TRUST,20021340,"60,362.95"
Department of Health,NHS Sheffield CCG,31/12/2017,C&M-APMS Prem Notional Rent,PRC DELEGATED CO-COMMISSIONING,SHEFFIELD HEALTH & SOCIAL CARE NHS FOUNDATION TRUST,20021340,"2,804.17"
Department of Health,NHS Sheffield CCG,31/12/2017,C&M-PMS QOF Aspiration,PRC DELEGATED CO-COMMISSIONING,SHEFFIELD HEALTH & SOCIAL CARE NHS FOUNDATION TRUST,20021340,"12,657.74"
Department of Health,NHS Sheffield CCG,31/12/2017,C&M-APMS Contract Value,PRC DELEGATED CO-COMMISSIONING,SHEFFIELD HEALTH & SOCIAL CARE NHS FOUNDATION TRUST,20021342,"26,563.38"
Department of Health,NHS Sheffield CCG,31/12/2017,C&M-APMS OOH Opt Outs,PRC DELEGATED CO-COMMISSIONING,SHEFFIELD HEALTH & SOCIAL CARE NHS FOUNDATION TRUST,20021342,15.42
Department of Health,NHS Sheffield CCG,31/12/2017,C&M-PMS QOF Aspiration,PRC DELEGATED CO-COMMISSIONING,SHEFFIELD HEALTH & SOCIAL CARE NHS FOUNDATION TRUST,20021342,"1,256.00"
Department of Health,NHS Sheffield CCG,31/12/2017,Hcare Srv Rec Fdtn Trust-Contract Baseline,MENTAL HEALTH CONTRACTS,SHEFFIELD HEALTH & SOCIAL CARE NHS FOUNDATION TRUST,20028868,"6,013,427.33"
Department of Health,NHS Sheffield CCG,31/12/2017,Hcare Srv Rec Fdtn Trust-Contract Baseline,MENTAL HEALTH CONTRACTS,SHEFFIELD HEALTH & SOCIAL CARE NHS FOUNDATION TRUST,20141907,"43,493.80"
Department of Health,NHS Sheffield CCG,31/12/2017,Cont Care-Foundation Trust,CHC ADULT FULLY FUNDED,SHEFFIELD HEALTH & SOCIAL CARE NHS FOUNDATION TRUST,20141914,"236,256.12"
Department of Health,NHS Sheffield CCG,31/12/2017,Hcare Srv Rec Fdtn Trust-Contract Baseline,ACUTE COMMISSIONING,SHEFFIELD TEACHING HOSPITALS NHS FOUNDATION TRUST,19943311,"6,239,677.00"
Department of Health,NHS Sheffield CCG,31/12/2017,Hcare Srv Rec Fdtn Trust-Contract Baseline,ACUTE COMMISSIONING,SHEFFIELD TEACHING HOSPITALS NHS FOUNDATION TRUST,19943316,"1,101,688.00"
Department of Health,NHS Sheffield CCG,31/12/2017,Hcare Srv Rec Fdtn Trust-Contract Baseline,ACUTE COMMISSIONING,SHEFFIELD TEACHING HOSPITALS NHS FOUNDATION TRUST,19943317,"26,312,884.00"
Department of Health,NHS Sheffield CCG,31/12/2017,Hcare Srv Rec Fdtn Trust-Contract Baseline,ACUTE COMMISSIONING,SHEFFIELD TEACHING HOSPITALS NHS FOUNDATION TRUST,19943319,"3,826,133.00"
Department of Health,NHS Sheffield CCG,31/12/2017,Hcare Srv Rec Fdtn Trust-Contract Baseline,ACUTE COMMISSIONING,SHEFFIELD TEACHING HOSPITALS NHS FOUNDATION TRUST,19943321,"65,513.00"
Department of Health,NHS Sheffield CCG,31/12/2017,Hcare Srv Rec Fdtn Trust-Contract Baseline,ACUTE COMMISSIONING,SHEFFIELD TEACHING HOSPITALS NHS FOUNDATION TRUST,19943322,"316,656.00"
Department of Health,NHS Sheffield CCG,31/12/2017,Hcare Srv Rec Fdtn Trust-Contract Baseline,ACUTE COMMISSIONING,SHEFFIELD TEACHING HOSPITALS NHS FOUNDATION TRUST,20028805,"2,656,429.00"
Department of Health,NHS Sheffield CCG,31/12/2017,Hcare Srv Rec Fdtn Trust-Contract Baseline,ACUTE COMMISSIONING,SHEFFIELD TEACHING HOSPITALS NHS FOUNDATION TRUST,20028826,"-219,231.00"
Department of Health,NHS Sheffield CCG,31/12/2017,Hcare Srv Rec Fdtn Trust-Contract Baseline,ACUTE COMMISSIONING,SHEFFIELD TEACHING HOSPITALS NHS FOUNDATION TRUST,20098268,"261,312.00"
Department of Health,NHS Sheffield CCG,31/12/2017,Hcare Srv Rec Fdtn Trust-Contract Baseline,ACUTE COMMISSIONING,SHEFFIELD TEACHING HOSPITALS NHS FOUNDATION TRUST,20141939,"-223,300.00"
Department of Health,NHS Sheffield CCG,31/12/2017,Hcare Srv Rec Fdtn Trust-Contract Baseline,ACUTE COMMISSIONING,SHEFFIELD TEACHING HOSPITALS NHS FOUNDATION TRUST,20257471,"-164,594.00"
Department of Health,NHS Sheffield CCG,31/12/2017,C&M-GMS DES Extended Hours Access,PRC DELEGATED CO-COMMISSIONING,SHIREGREEN MEDICAL CENTRE,20197358,"3,676.98"
Department of Health,NHS Sheffield CCG,31/12/2017,C&M-GMS DES Learn Dsblty Hlth Chk,PRC DELEGATED CO-COMMISSIONING,SHIREGREEN MEDICAL CENTRE,20197358,140
Department of Health,NHS Sheffield CCG,31/12/2017,C&M-GMS Global Sum,PRC DELEGATED CO-COMMISSIONING,SHIREGREEN MEDICAL CENTRE,20197358,"55,665.46"
Department of Health,NHS Sheffield CCG,31/12/2017,C&M-GMS MPIG Correction Factor,PRC DELEGATED CO-COMMISSIONING,SHIREGREEN MEDICAL CENTRE,20197358,680.53
Department of Health,NHS Sheffield CCG,31/12/2017,C&M-GMS PCO Other,PRC DELEGATED CO-COMMISSIONING,SHIREGREEN MEDICAL CENTRE,20197358,452.6
Department of Health,NHS Sheffield CCG,31/12/2017,C&M-GMS PCO Seniority,PRC DELEGATED CO-COMMISSIONING,SHIREGREEN MEDICAL CENTRE,20197358,"3,240.59"
Department of Health,NHS Sheffield CCG,31/12/2017,C&M-GMS Prem Cost Rent,PRC DELEGATED CO-COMMISSIONING,SHIREGREEN MEDICAL CENTRE,20197358,"1,792.33"
Department of Health,NHS Sheffield CCG,31/12/2017,C&M-GMS Prem Notional Rent,PRC DELEGATED CO-COMMISSIONING,SHIREGREEN MEDICAL CENTRE,20197358,"5,375.00"
Department of Health,NHS Sheffield CCG,31/12/2017,C&M-GMS Prem Rates,PRC DELEGATED CO-COMMISSIONING,SHIREGREEN MEDICAL CENTRE,20197358,"1,877.00"
Department of Health,NHS Sheffield CCG,31/12/2017,C&M-GMS QOF Aspiration,PRC DELEGATED CO-COMMISSIONING,SHIREGREEN MEDICAL CENTRE,20197358,"6,614.14"
Department of Health,NHS Sheffield CCG,31/12/2017,C&M-PMS Contract Value,PRC DELEGATED CO-COMMISSIONING,SLOAN MEDICAL CENTRE,20019898,"90,886.23"
Department of Health,NHS Sheffield CCG,31/12/2017,C&M-PMS DES Learn Dsblty Hlth Chk,PRC DELEGATED CO-COMMISSIONING,SLOAN MEDICAL CENTRE,20019898,140
Department of Health,NHS Sheffield CCG,31/12/2017,C&M-PMS Funding Differential Review,PRC DELEGATED CO-COMMISSIONING,SLOAN MEDICAL CENTRE,20019898,165.33
Department of Health,NHS Sheffield CCG,31/12/2017,C&M-PMS Out of Hours Opt Outs,PRC DELEGATED CO-COMMISSIONING,SLOAN MEDICAL CENTRE,20019898,34.36
Department of Health,NHS Sheffield CCG,31/12/2017,C&M-PMS PCO Other,PRC DELEGATED CO-COMMISSIONING,SLOAN MEDICAL CENTRE,20019898,523.7
Department of Health,NHS Sheffield CCG,31/12/2017,C&M-PMS PCO Seniority,PRC DELEGATED CO-COMMISSIONING,SLOAN MEDICAL CENTRE,20019898,"7,454.15"
Department of Health,NHS Sheffield CCG,31/12/2017,C&M-PMS Prem Actual Rent,PRC DELEGATED CO-COMMISSIONING,SLOAN MEDICAL CENTRE,20019898,"15,535.83"
Department of Health,NHS Sheffield CCG,31/12/2017,C&M-PMS Prem Notional Rent,PRC DELEGATED CO-COMMISSIONING,SLOAN MEDICAL CENTRE,20019898,608.33
Department of Health,NHS Sheffield CCG,31/12/2017,C&M-PMS Prem Rates,PRC DELEGATED CO-COMMISSIONING,SLOAN MEDICAL CENTRE,20019898,"2,990.00"
Department of Health,NHS Sheffield CCG,31/12/2017,C&M-PMS QOF Aspiration,PRC DELEGATED CO-COMMISSIONING,SLOAN MEDICAL CENTRE,20019898,"10,663.96"
Department of Health,NHS Sheffield CCG,31/12/2017,C&M-PMS Contract Value,PRC DELEGATED CO-COMMISSIONING,SOTHALL MEDICAL CENTRE,20019900,"69,389.43"
Department of Health,NHS Sheffield CCG,31/12/2017,C&M-PMS Funding Differential Review,PRC DELEGATED CO-COMMISSIONING,SOTHALL MEDICAL CENTRE,20019900,"3,463.83"
Department of Health,NHS Sheffield CCG,31/12/2017,C&M-PMS Out of Hours Opt Outs,PRC DELEGATED CO-COMMISSIONING,SOTHALL MEDICAL CENTRE,20019900,41.29
Department of Health,NHS Sheffield CCG,31/12/2017,C&M-PMS PCO Other,PRC DELEGATED CO-COMMISSIONING,SOTHALL MEDICAL CENTRE,20019900,523.7
Department of Health,NHS Sheffield CCG,31/12/2017,C&M-PMS PCO Seniority,PRC DELEGATED CO-COMMISSIONING,SOTHALL MEDICAL CENTRE,20019900,"6,071.66"
Department of Health,NHS Sheffield CCG,31/12/2017,C&M-PMS Prem Healthcentre Rent,PRC DELEGATED CO-COMMISSIONING,SOTHALL MEDICAL CENTRE,20019900,"2,953.43"
Department of Health,NHS Sheffield CCG,31/12/2017,C&M-PMS Prem Notional Rent,PRC DELEGATED CO-COMMISSIONING,SOTHALL MEDICAL CENTRE,20019900,"5,116.67"
Department of Health,NHS Sheffield CCG,31/12/2017,C&M-PMS Prem Rates,PRC DELEGATED CO-COMMISSIONING,SOTHALL MEDICAL CENTRE,20019900,"1,000.00"
Department of Health,NHS Sheffield CCG,31/12/2017,C&M-PMS Prem Water Rates,PRC DELEGATED CO-COMMISSIONING,SOTHALL MEDICAL CENTRE,20019900,110.57
Department of Health,NHS Sheffield CCG,31/12/2017,C&M-PMS QOF Aspiration,PRC DELEGATED CO-COMMISSIONING,SOTHALL MEDICAL CENTRE,20019900,"8,821.42"
Department of Health,NHS Sheffield CCG,31/12/2017,Cont Care- Adult 100% Fully Funded,CHC ADULT FULLY FUNDED,SOUTH YORKSHIRE HOUSING ASSOCIATION LTD,19943382,"103,949.00"
Department of Health,NHS Sheffield CCG,31/12/2017,Clinical&Medical-Independent Sector,MENTAL HEALTH CONTRACTS,SOUTH YORKSHIRE HOUSING ASSOCIATION LTD,19943440,"34,435.00"
Department of Health,NHS Sheffield CCG,31/12/2017,Cont Care- Adult 100% Fully Funded,CHC ADULT FULLY FUNDED,SOUTH YORKSHIRE HOUSING ASSOCIATION LTD,19972991,"25,500.00"
Department of Health,NHS Sheffield CCG,31/12/2017,Cont Care-Physical Disab (<65),CHC ADULT FULLY FUNDED,SOUTH YORKSHIRE HOUSING ASSOCIATION LTD,20028929,"78,995.50"
Department of Health,NHS Sheffield CCG,31/12/2017,C&M-PMS Contract Value,PRC DELEGATED CO-COMMISSIONING,SOUTHEY GREEN MEDICAL CENTRE,20019902,"25,573.59"
Department of Health,NHS Sheffield CCG,31/12/2017,C&M-PMS Funding Differential Review,PRC DELEGATED CO-COMMISSIONING,SOUTHEY GREEN MEDICAL CENTRE,20019902,127.58
Department of Health,NHS Sheffield CCG,31/12/2017,C&M-PMS PCO Seniority,PRC DELEGATED CO-COMMISSIONING,SOUTHEY GREEN MEDICAL CENTRE,20019902,"1,262.74"
Department of Health,NHS Sheffield CCG,31/12/2017,C&M-PMS Prem Notional Rent,PRC DELEGATED CO-COMMISSIONING,SOUTHEY GREEN MEDICAL CENTRE,20019902,"3,362.50"
Department of Health,NHS Sheffield CCG,31/12/2017,C&M-PMS Prem Rates,PRC DELEGATED CO-COMMISSIONING,SOUTHEY GREEN MEDICAL CENTRE,20019902,"1,277.00"
Department of Health,NHS Sheffield CCG,31/12/2017,C&M-PMS QOF Aspiration,PRC DELEGATED CO-COMMISSIONING,SOUTHEY GREEN MEDICAL CENTRE,20019902,"2,875.40"
Department of Health,NHS Sheffield CCG,31/12/2017,C&M-GMS Cost of Drugs -Prescribing,LOCAL ENHANCED SERVICES,STANNINGTON MEDICAL CENTRE,20197362,"1,173.68"
Department of Health,NHS Sheffield CCG,31/12/2017,C&M-GMS Global Sum,PRC DELEGATED CO-COMMISSIONING,STANNINGTON MEDICAL CENTRE,20197362,"23,059.09"
Department of Health,NHS Sheffield CCG,31/12/2017,C&M-GMS PCO Other,PRC DELEGATED CO-COMMISSIONING,STANNINGTON MEDICAL CENTRE,20197362,384.5
Department of Health,NHS Sheffield CCG,31/12/2017,C&M-GMS PCO Seniority,PRC DELEGATED CO-COMMISSIONING,STANNINGTON MEDICAL CENTRE,20197362,"1,477.36"
Department of Health,NHS Sheffield CCG,31/12/2017,C&M-GMS Prem Notional Rent,PRC DELEGATED CO-COMMISSIONING,STANNINGTON MEDICAL CENTRE,20197362,"2,533.33"
Department of Health,NHS Sheffield CCG,31/12/2017,C&M-GMS Prem Rates,PRC DELEGATED CO-COMMISSIONING,STANNINGTON MEDICAL CENTRE,20197362,482
Department of Health,NHS Sheffield CCG,31/12/2017,C&M-GMS Prem Water Rates,PRC DELEGATED CO-COMMISSIONING,STANNINGTON MEDICAL CENTRE,20197362,132.52
Department of Health,NHS Sheffield CCG,31/12/2017,C&M-GMS Prof Fees Prescribing,PRC DELEGATED CO-COMMISSIONING,STANNINGTON MEDICAL CENTRE,20197362,313.68
Department of Health,NHS Sheffield CCG,31/12/2017,C&M-GMS QOF Aspiration,PRC DELEGATED CO-COMMISSIONING,STANNINGTON MEDICAL CENTRE,20197362,"3,253.08"
Department of Health,NHS Sheffield CCG,31/12/2017,C&M-GMS Cost of Drugs -Prescribing,LOCAL ENHANCED SERVICES,STONECROFT MEDICAL CENTRE,20197360,"8,410.65"
Department of Health,NHS Sheffield CCG,31/12/2017,C&M-GMS DES Learn Dsblty Hlth Chk,PRC DELEGATED CO-COMMISSIONING,STONECROFT MEDICAL CENTRE,20197360,140
Department of Health,NHS Sheffield CCG,31/12/2017,C&M-GMS Global Sum,PRC DELEGATED CO-COMMISSIONING,STONECROFT MEDICAL CENTRE,20197360,"30,084.78"
Department of Health,NHS Sheffield CCG,31/12/2017,C&M-GMS MPIG Correction Factor,PRC DELEGATED CO-COMMISSIONING,STONECROFT MEDICAL CENTRE,20197360,927.38
Department of Health,NHS Sheffield CCG,31/12/2017,C&M-GMS PCO Other,PRC DELEGATED CO-COMMISSIONING,STONECROFT MEDICAL CENTRE,20197360,384.5
Department of Health,NHS Sheffield CCG,31/12/2017,C&M-GMS PCO Seniority,PRC DELEGATED CO-COMMISSIONING,STONECROFT MEDICAL CENTRE,20197360,"2,223.22"
Department of Health,NHS Sheffield CCG,31/12/2017,C&M-GMS Prem Notional Rent,PRC DELEGATED CO-COMMISSIONING,STONECROFT MEDICAL CENTRE,20197360,"2,808.33"
Department of Health,NHS Sheffield CCG,31/12/2017,C&M-GMS Prem Rates,PRC DELEGATED CO-COMMISSIONING,STONECROFT MEDICAL CENTRE,20197360,"1,083.00"
Department of Health,NHS Sheffield CCG,31/12/2017,C&M-GMS Prem Water Rates,PRC DELEGATED CO-COMMISSIONING,STONECROFT MEDICAL CENTRE,20197360,574.37
Department of Health,NHS Sheffield CCG,31/12/2017,C&M-GMS Prof Fees Prescribing,PRC DELEGATED CO-COMMISSIONING,STONECROFT MEDICAL CENTRE,20197360,"1,886.71"
Department of Health,NHS Sheffield CCG,31/12/2017,C&M-GMS QOF Aspiration,PRC DELEGATED CO-COMMISSIONING,STONECROFT MEDICAL CENTRE,20197360,"4,224.91"
Department of Health,NHS Sheffield CCG,31/12/2017,Cont Care-Learning Disab(<65),CHC ADULT FULLY FUNDED,SUN HEALTHCARE LTD,19903678,"40,364.40"
Department of Health,NHS Sheffield CCG,31/12/2017,Clinical&Medical-Independent Sector,MENTAL HEALTH CONTRACTS,SUSASH GB LTD T/A EAGLE HOUSE,19943380,"30,092.00"
Department of Health,NHS Sheffield CCG,31/12/2017,C&M-GMS Cost of Drugs -Prescribing,LOCAL ENHANCED SERVICES,TOTLEY RISE MEDICAL CENTRE,20197364,"1,488.07"
Department of Health,NHS Sheffield CCG,31/12/2017,C&M-GMS Global Sum,PRC DELEGATED CO-COMMISSIONING,TOTLEY RISE MEDICAL CENTRE,20197364,"22,215.43"
Department of Health,NHS Sheffield CCG,31/12/2017,C&M-GMS MPIG Correction Factor,PRC DELEGATED CO-COMMISSIONING,TOTLEY RISE MEDICAL CENTRE,20197364,154.7
Department of Health,NHS Sheffield CCG,31/12/2017,C&M-GMS PCO Locum Adop/Pat/Mat,PRC DELEGATED CO-COMMISSIONING,TOTLEY RISE MEDICAL CENTRE,20197364,"3,765.60"
Department of Health,NHS Sheffield CCG,31/12/2017,C&M-GMS PCO Other,PRC DELEGATED CO-COMMISSIONING,TOTLEY RISE MEDICAL CENTRE,20197364,384.5
Department of Health,NHS Sheffield CCG,31/12/2017,C&M-GMS PCO Seniority,PRC DELEGATED CO-COMMISSIONING,TOTLEY RISE MEDICAL CENTRE,20197364,"1,842.60"
Department of Health,NHS Sheffield CCG,31/12/2017,C&M-GMS Prem Notional Rent,PRC DELEGATED CO-COMMISSIONING,TOTLEY RISE MEDICAL CENTRE,20197364,"1,491.67"
Department of Health,NHS Sheffield CCG,31/12/2017,C&M-GMS Prem Rates,PRC DELEGATED CO-COMMISSIONING,TOTLEY RISE MEDICAL CENTRE,20197364,136
Department of Health,NHS Sheffield CCG,31/12/2017,C&M-GMS Prof Fees Prescribing,PRC DELEGATED CO-COMMISSIONING,TOTLEY RISE MEDICAL CENTRE,20197364,410.87
Department of Health,NHS Sheffield CCG,31/12/2017,C&M-GMS QOF Aspiration,PRC DELEGATED CO-COMMISSIONING,TOTLEY RISE MEDICAL CENTRE,20197364,"2,269.92"
Department of Health,NHS Sheffield CCG,31/12/2017,C&M-GMS Cost of Drugs -Prescribing,LOCAL ENHANCED SERVICES,TRAMWAYS MEDICAL CENTRE,20197366,"7,143.74"
Department of Health,NHS Sheffield CCG,31/12/2017,C&M-GMS Global Sum,PRC DELEGATED CO-COMMISSIONING,TRAMWAYS MEDICAL CENTRE,20197366,"58,619.02"
Department of Health,NHS Sheffield CCG,31/12/2017,C&M-GMS PCO Other,PRC DELEGATED CO-COMMISSIONING,TRAMWAYS MEDICAL CENTRE,20197366,452.6
Department of Health,NHS Sheffield CCG,31/12/2017,C&M-GMS PCO Seniority,PRC DELEGATED CO-COMMISSIONING,TRAMWAYS MEDICAL CENTRE,20197366,"6,000.03"
Department of Health,NHS Sheffield CCG,31/12/2017,C&M-GMS Prem Cost Rent,PRC DELEGATED CO-COMMISSIONING,TRAMWAYS MEDICAL CENTRE,20197366,"4,012.75"
Department of Health,NHS Sheffield CCG,31/12/2017,C&M-GMS Prem Rates,PRC DELEGATED CO-COMMISSIONING,TRAMWAYS MEDICAL CENTRE,20197366,889
Department of Health,NHS Sheffield CCG,31/12/2017,C&M-GMS Prof Fees Prescribing,PRC DELEGATED CO-COMMISSIONING,TRAMWAYS MEDICAL CENTRE,20197366,"1,654.30"
Department of Health,NHS Sheffield CCG,31/12/2017,C&M-GMS QOF Aspiration,PRC DELEGATED CO-COMMISSIONING,TRAMWAYS MEDICAL CENTRE,20197366,"6,336.58"
Department of Health,NHS Sheffield CCG,31/12/2017,External Consultancy Fees,CLINICAL LEADS,TRANSFORMING CARE LTD,20173786,"36,300.00"
Department of Health,NHS Sheffield CCG,31/12/2017,Cont Care-Funded Nursing Care Allow,FUNDED NURSING CARE,ULTIMA CARE CENTRES (NO1) LTD,19990096,"35,107.75"
Department of Health,NHS Sheffield CCG,31/12/2017,Hcare Srv Rec Fdtn Trust-Non Contract,NCAS/OATS,UNIVERSITY COLLEGE LONDON HOSPITALS NHS FOUNDATION TRUST,20098351,"60,135.00"
Department of Health,NHS Sheffield CCG,31/12/2017,C&M-PMS Contract Value,PRC DELEGATED CO-COMMISSIONING,UNIVERSITY HEALTH SERVICE,20019906,"168,118.49"
Department of Health,NHS Sheffield CCG,31/12/2017,C&M-PMS Out of Hours Opt Outs,PRC DELEGATED CO-COMMISSIONING,UNIVERSITY HEALTH SERVICE,20019906,507.65
Department of Health,NHS Sheffield CCG,31/12/2017,C&M-PMS PCO Locum Adop/Pat/Mat,PRC DELEGATED CO-COMMISSIONING,UNIVERSITY HEALTH SERVICE,20019906,"7,544.18"
Department of Health,NHS Sheffield CCG,31/12/2017,C&M-PMS PCO Seniority,PRC DELEGATED CO-COMMISSIONING,UNIVERSITY HEALTH SERVICE,20019906,"5,654.51"
Department of Health,NHS Sheffield CCG,31/12/2017,C&M-PMS Prem Notional Rent,PRC DELEGATED CO-COMMISSIONING,UNIVERSITY HEALTH SERVICE,20019906,"15,833.33"
Department of Health,NHS Sheffield CCG,31/12/2017,C&M-PMS QOF Aspiration,PRC DELEGATED CO-COMMISSIONING,UNIVERSITY HEALTH SERVICE,20019906,"3,640.26"
Department of Health,NHS Sheffield CCG,31/12/2017,C&M-GMS Cost of Drugs -Prescribing,LOCAL ENHANCED SERVICES,UPPERTHORPE MEDICAL CENTRE,20197369,"13,546.88"
Department of Health,NHS Sheffield CCG,31/12/2017,C&M-GMS DES Extended Hours Access,PRC DELEGATED CO-COMMISSIONING,UPPERTHORPE MEDICAL CENTRE,20197369,"5,326.65"
Department of Health,NHS Sheffield CCG,31/12/2017,C&M-GMS DES Learn Dsblty Hlth Chk,PRC DELEGATED CO-COMMISSIONING,UPPERTHORPE MEDICAL CENTRE,20197369,"1,820.00"
Department of Health,NHS Sheffield CCG,31/12/2017,C&M-GMS Global Sum,PRC DELEGATED CO-COMMISSIONING,UPPERTHORPE MEDICAL CENTRE,20197369,"76,147.36"
Department of Health,NHS Sheffield CCG,31/12/2017,C&M-GMS MPIG Correction Factor,PRC DELEGATED CO-COMMISSIONING,UPPERTHORPE MEDICAL CENTRE,20197369,"1,988.60"
Department of Health,NHS Sheffield CCG,31/12/2017,C&M-GMS PCO Seniority,PRC DELEGATED CO-COMMISSIONING,UPPERTHORPE MEDICAL CENTRE,20197369,"4,393.07"
Department of Health,NHS Sheffield CCG,31/12/2017,C&M-GMS Prem Actual Rent,PRC DELEGATED CO-COMMISSIONING,UPPERTHORPE MEDICAL CENTRE,20197369,"29,475.00"
Department of Health,NHS Sheffield CCG,31/12/2017,C&M-GMS Prem Notional Rent,PRC DELEGATED CO-COMMISSIONING,UPPERTHORPE MEDICAL CENTRE,20197369,"2,497.83"
Department of Health,NHS Sheffield CCG,31/12/2017,C&M-GMS Prem Rates,PRC DELEGATED CO-COMMISSIONING,UPPERTHORPE MEDICAL CENTRE,20197369,"2,044.00"
Department of Health,NHS Sheffield CCG,31/12/2017,C&M-GMS Prof Fees Prescribing,PRC DELEGATED CO-COMMISSIONING,UPPERTHORPE MEDICAL CENTRE,20197369,"2,955.65"
Department of Health,NHS Sheffield CCG,31/12/2017,C&M-GMS QOF Aspiration,PRC DELEGATED CO-COMMISSIONING,UPPERTHORPE MEDICAL CENTRE,20197369,"9,309.14"
Department of Health,NHS Sheffield CCG,31/12/2017,C&M-PMS Contract Value,PRC DELEGATED CO-COMMISSIONING,UPWELL STREET SURGERY,20019908,"37,326.83"
Department of Health,NHS Sheffield CCG,31/12/2017,C&M-PMS DES Learn Dsblty Hlth Chk,PRC DELEGATED CO-COMMISSIONING,UPWELL STREET SURGERY,20019908,"1,260.00"
Department of Health,NHS Sheffield CCG,31/12/2017,C&M-PMS Funding Differential Review,PRC DELEGATED CO-COMMISSIONING,UPWELL STREET SURGERY,20019908,"2,004.50"
Department of Health,NHS Sheffield CCG,31/12/2017,C&M-PMS Out of Hours Opt Outs,PRC DELEGATED CO-COMMISSIONING,UPWELL STREET SURGERY,20019908,58.8
Department of Health,NHS Sheffield CCG,31/12/2017,C&M-PMS PCO Other,PRC DELEGATED CO-COMMISSIONING,UPWELL STREET SURGERY,20019908,384.5
Department of Health,NHS Sheffield CCG,31/12/2017,C&M-PMS PCO Seniority,PRC DELEGATED CO-COMMISSIONING,UPWELL STREET SURGERY,20019908,"3,905.61"
Department of Health,NHS Sheffield CCG,31/12/2017,C&M-PMS Prem Actual Rent,PRC DELEGATED CO-COMMISSIONING,UPWELL STREET SURGERY,20019908,"8,137.50"
Department of Health,NHS Sheffield CCG,31/12/2017,C&M-PMS Prem Notional Rent,PRC DELEGATED CO-COMMISSIONING,UPWELL STREET SURGERY,20019908,"8,137.50"
Department of Health,NHS Sheffield CCG,31/12/2017,C&M-PMS Prem Rates,PRC DELEGATED CO-COMMISSIONING,UPWELL STREET SURGERY,20019908,984
Department of Health,NHS Sheffield CCG,31/12/2017,C&M-PMS Prem Water Rates,PRC DELEGATED CO-COMMISSIONING,UPWELL STREET SURGERY,20019908,85.5
Department of Health,NHS Sheffield CCG,31/12/2017,C&M-PMS QOF Aspiration,PRC DELEGATED CO-COMMISSIONING,UPWELL STREET SURGERY,20019908,"4,877.64"
Department of Health,NHS Sheffield CCG,31/12/2017,C&M-PMS Contract Value,PRC DELEGATED CO-COMMISSIONING,VALLEY MEDICAL CENTRE,20043774,"75,530.55"
Department of Health,NHS Sheffield CCG,31/12/2017,C&M-PMS DES Learn Dsblty Hlth Chk,PRC DELEGATED CO-COMMISSIONING,VALLEY MEDICAL CENTRE,20043774,140
Department of Health,NHS Sheffield CCG,31/12/2017,C&M-PMS Funding Differential Review,PRC DELEGATED CO-COMMISSIONING,VALLEY MEDICAL CENTRE,20043774,271.17
Department of Health,NHS Sheffield CCG,31/12/2017,C&M-PMS Out of Hours Opt Outs,PRC DELEGATED CO-COMMISSIONING,VALLEY MEDICAL CENTRE,20043774,0.6
Department of Health,NHS Sheffield CCG,31/12/2017,C&M-PMS PCO Locum Adop/Pat/Mat,PRC DELEGATED CO-COMMISSIONING,VALLEY MEDICAL CENTRE,20043774,"3,030.36"
Department of Health,NHS Sheffield CCG,31/12/2017,C&M-PMS PCO Seniority,PRC DELEGATED CO-COMMISSIONING,VALLEY MEDICAL CENTRE,20043774,"5,251.35"
Department of Health,NHS Sheffield CCG,31/12/2017,C&M-PMS Prem Actual Rent,PRC DELEGATED CO-COMMISSIONING,VALLEY MEDICAL CENTRE,20043774,"24,915.60"
Department of Health,NHS Sheffield CCG,31/12/2017,C&M-PMS Prem Rates,PRC DELEGATED CO-COMMISSIONING,VALLEY MEDICAL CENTRE,20043774,"1,083.00"
Department of Health,NHS Sheffield CCG,31/12/2017,C&M-PMS QOF Aspiration,PRC DELEGATED CO-COMMISSIONING,VALLEY MEDICAL CENTRE,20043774,"9,125.55"
Department of Health,NHS Sheffield CCG,31/12/2017,Clinical&Medical-Voluntary Sector,CLINICAL LEADS,VOLUNTARY ACTION ROTHERHAM,20262715,"49,500.00"
Department of Health,NHS Sheffield CCG,31/12/2017,Clinical&Medical-Voluntary Sector,CLINICAL LEADS,VOLUNTARY ACTION ROTHERHAM,20262716,"46,000.00"
Department of Health,NHS Sheffield CCG,31/12/2017,C&M-GMS Cost of Drugs -Prescribing,LOCAL ENHANCED SERVICES,WALKLEY HOUSE MEDICAL CENTRE,20197373,"10,944.72"
Department of Health,NHS Sheffield CCG,31/12/2017,C&M-GMS Global Sum,PRC DELEGATED CO-COMMISSIONING,WALKLEY HOUSE MEDICAL CENTRE,20197373,"78,378.53"
Department of Health,NHS Sheffield CCG,31/12/2017,C&M-GMS PCO Seniority,PRC DELEGATED CO-COMMISSIONING,WALKLEY HOUSE MEDICAL CENTRE,20197373,"5,301.29"
Department of Health,NHS Sheffield CCG,31/12/2017,C&M-GMS Prem Notional Rent,PRC DELEGATED CO-COMMISSIONING,WALKLEY HOUSE MEDICAL CENTRE,20197373,"5,635.51"
Department of Health,NHS Sheffield CCG,31/12/2017,C&M-GMS Prof Fees Prescribing,PRC DELEGATED CO-COMMISSIONING,WALKLEY HOUSE MEDICAL CENTRE,20197373,"3,260.49"
Department of Health,NHS Sheffield CCG,31/12/2017,C&M-GMS QOF Aspiration,PRC DELEGATED CO-COMMISSIONING,WALKLEY HOUSE MEDICAL CENTRE,20197373,"8,922.54"
Department of Health,NHS Sheffield CCG,31/12/2017,C&M-GMS Cost of Drugs -Prescribing,LOCAL ENHANCED SERVICES,WHITE HOUSE SURGERY SHEFFIELD,20197371,"7,154.19"
Department of Health,NHS Sheffield CCG,31/12/2017,C&M-GMS DES Extended Hours Access,PRC DELEGATED CO-COMMISSIONING,WHITE HOUSE SURGERY SHEFFIELD,20197371,"2,994.88"
Department of Health,NHS Sheffield CCG,31/12/2017,C&M-GMS DES Learn Dsblty Hlth Chk,PRC DELEGATED CO-COMMISSIONING,WHITE HOUSE SURGERY SHEFFIELD,20197371,840
Department of Health,NHS Sheffield CCG,31/12/2017,C&M-GMS Global Sum,PRC DELEGATED CO-COMMISSIONING,WHITE HOUSE SURGERY SHEFFIELD,20197371,"47,534.58"
Department of Health,NHS Sheffield CCG,31/12/2017,C&M-GMS MPIG Correction Factor,PRC DELEGATED CO-COMMISSIONING,WHITE HOUSE SURGERY SHEFFIELD,20197371,"2,086.94"
Department of Health,NHS Sheffield CCG,31/12/2017,C&M-GMS PCO Seniority,PRC DELEGATED CO-COMMISSIONING,WHITE HOUSE SURGERY SHEFFIELD,20197371,"2,715.30"
Department of Health,NHS Sheffield CCG,31/12/2017,C&M-GMS Prem Notional Rent,PRC DELEGATED CO-COMMISSIONING,WHITE HOUSE SURGERY SHEFFIELD,20197371,"9,104.17"
Department of Health,NHS Sheffield CCG,31/12/2017,C&M-GMS Prem Rates,PRC DELEGATED CO-COMMISSIONING,WHITE HOUSE SURGERY SHEFFIELD,20197371,"2,013.00"
Department of Health,NHS Sheffield CCG,31/12/2017,C&M-GMS Prem Water Rates,PRC DELEGATED CO-COMMISSIONING,WHITE HOUSE SURGERY SHEFFIELD,20197371,179.01
Department of Health,NHS Sheffield CCG,31/12/2017,C&M-GMS Prof Fees Prescribing,PRC DELEGATED CO-COMMISSIONING,WHITE HOUSE SURGERY SHEFFIELD,20197371,"2,111.81"
Department of Health,NHS Sheffield CCG,31/12/2017,C&M-GMS QOF Aspiration,PRC DELEGATED CO-COMMISSIONING,WHITE HOUSE SURGERY SHEFFIELD,20197371,"6,083.99"
Department of Health,NHS Sheffield CCG,31/12/2017,Cont Care-Physical Disab (<65),CHC ADULT FULLY FUNDED,WILLOWBECK HEALTH CARE LTD,20028891,"177,950.16"
Department of Health,NHS Sheffield CCG,31/12/2017,C&M-PMS Contract Value,PRC DELEGATED CO-COMMISSIONING,WINCOBANK MEDICAL CENTRE,20019915,"59,620.95"
Department of Health,NHS Sheffield CCG,31/12/2017,C&M-PMS DES Learn Dsblty Hlth Chk,PRC DELEGATED CO-COMMISSIONING,WINCOBANK MEDICAL CENTRE,20019915,"1,260.00"
Department of Health,NHS Sheffield CCG,31/12/2017,C&M-PMS Funding Differential Review,PRC DELEGATED CO-COMMISSIONING,WINCOBANK MEDICAL CENTRE,20019915,9.92
Department of Health,NHS Sheffield CCG,31/12/2017,C&M-PMS PCO Seniority,PRC DELEGATED CO-COMMISSIONING,WINCOBANK MEDICAL CENTRE,20019915,"2,385.36"
Department of Health,NHS Sheffield CCG,31/12/2017,C&M-PMS Prem Healthcentre Rent,PRC DELEGATED CO-COMMISSIONING,WINCOBANK MEDICAL CENTRE,20019915,"42,475.13"
Department of Health,NHS Sheffield CCG,31/12/2017,C&M-PMS QOF Aspiration,PRC DELEGATED CO-COMMISSIONING,WINCOBANK MEDICAL CENTRE,20019915,"6,934.01"
Department of Health,NHS Sheffield CCG,31/12/2017,C&M-PMS Contract Value,PRC DELEGATED CO-COMMISSIONING,WOODHOUSE HEALTH CENTRE,20019911,"96,169.70"
Department of Health,NHS Sheffield CCG,31/12/2017,C&M-PMS DES Learn Dsblty Hlth Chk,PRC DELEGATED CO-COMMISSIONING,WOODHOUSE HEALTH CENTRE,20019911,"1,400.00"
Department of Health,NHS Sheffield CCG,31/12/2017,C&M-PMS Funding Differential Review,PRC DELEGATED CO-COMMISSIONING,WOODHOUSE HEALTH CENTRE,20019911,"2,776.33"
Department of Health,NHS Sheffield CCG,31/12/2017,C&M-PMS Out of Hours Opt Outs,PRC DELEGATED CO-COMMISSIONING,WOODHOUSE HEALTH CENTRE,20019911,13.8
Department of Health,NHS Sheffield CCG,31/12/2017,C&M-PMS PCO Other,PRC DELEGATED CO-COMMISSIONING,WOODHOUSE HEALTH CENTRE,20019911,523.7
Department of Health,NHS Sheffield CCG,31/12/2017,C&M-PMS PCO Seniority,PRC DELEGATED CO-COMMISSIONING,WOODHOUSE HEALTH CENTRE,20019911,"5,821.97"
Department of Health,NHS Sheffield CCG,31/12/2017,C&M-PMS Prem Notional Rent,PRC DELEGATED CO-COMMISSIONING,WOODHOUSE HEALTH CENTRE,20019911,"6,338.58"
Department of Health,NHS Sheffield CCG,31/12/2017,C&M-PMS QOF Aspiration,PRC DELEGATED CO-COMMISSIONING,WOODHOUSE HEALTH CENTRE,20019911,"14,743.27"
Department of Health,NHS Sheffield CCG,31/12/2017,C&M-PMS Contract Value,PRC DELEGATED CO-COMMISSIONING,WOODSEATS MEDICAL CENTRE,20019913,"67,714.86"
Department of Health,NHS Sheffield CCG,31/12/2017,C&M-PMS Funding Differential Review,PRC DELEGATED CO-COMMISSIONING,WOODSEATS MEDICAL CENTRE,20019913,397.08
Department of Health,NHS Sheffield CCG,31/12/2017,C&M-PMS PCO Other,PRC DELEGATED CO-COMMISSIONING,WOODSEATS MEDICAL CENTRE,20019913,452.6
Department of Health,NHS Sheffield CCG,31/12/2017,C&M-PMS PCO Seniority,PRC DELEGATED CO-COMMISSIONING,WOODSEATS MEDICAL CENTRE,20019913,"2,873.64"
Department of Health,NHS Sheffield CCG,31/12/2017,C&M-PMS Prem Notional Rent,PRC DELEGATED CO-COMMISSIONING,WOODSEATS MEDICAL CENTRE,20019913,"11,666.42"
Department of Health,NHS Sheffield CCG,31/12/2017,C&M-PMS QOF Aspiration,PRC DELEGATED CO-COMMISSIONING,WOODSEATS MEDICAL CENTRE,20019913,"8,124.33"
Department of Health,NHS Sheffield CCG,31/12/2017,Hcare Srv Rec NHS Trust-Contract Baseline,NHS 111,YORKSHIRE AMBULANCE SERVICE NHS TRUST,19943342,"98,607.99"
Department of Health,NHS Sheffield CCG,31/12/2017,Hcare Srv Rec NHS Trust-Contract Baseline,PATIENT TRANSPORT,YORKSHIRE AMBULANCE SERVICE NHS TRUST,19943344,"255,744.52"
Department of Health,NHS Sheffield CCG,31/12/2017,Hcare Srv Rec NHS Trust-CQUIN,AMBULANCE SERVICES,YORKSHIRE AMBULANCE SERVICE NHS TRUST,19943351,"27,566.00"
Department of Health,NHS Sheffield CCG,31/12/2017,Hcare Srv Rec NHS Trust-Contract Baseline,AMBULANCE SERVICES,YORKSHIRE AMBULANCE SERVICE NHS TRUST,19943353,"1,440,139.00"
Department of Health,NHS Sheffield CCG,31/12/2017,Hcare Srv Rec NHS Trust-Contract Baseline,AMBULANCE SERVICES,YORKSHIRE AMBULANCE SERVICE NHS TRUST,19943354,"123,979.00"
,,,,,,,"69,527,590.09"
